Workbook

Sheet Свод
A1: Кандидаты прошедшие анкетирование | B1: 15216
A2: Кандидатов, не приступивших к анкетированию (основу выбрали, на вопросы анкеты не отвечали) | B2: 3304
B3: =SUM(B1:B2) -> 18520 | C3: (на 2.10.19)
A5: Выбрали внебюджетную основу обучения | B5: 2546

Sheet По направлениям
A1: № | B1: Приоритетное направление | C1: Кол-во
A2: 2.1. | B2: Программа ПК по совершенствованию предметной и методической компетентности учителей (педагогов). | C2: 3360
A3: 2.2. | B3: Программа ПК по совершенствованию психолого-педагогической и коммуникативной компетентности учителей (педагогов); | C3: 1008
A4: 2.3. | B4: Программа ПК, в которую включены модули, одновременно отражающие ключевые направления профессионального развития учителя (педагога): предметное, методическое, психолого-педагогическое, коммуникативное; | C4: 2731
A5: 2.4. | B5: Программа ПК, которая формирует у учителя(педагога) навыки развития у обучающихся метапредметных умений (например, креативность, критическое мышление, умение решать проблемы и др.); | C5: 2354
A6: 2.5. | B6: Программа ПК, которая формирует у учителя (педагога) навыки работы в полилингвальной образовательной среде; | C6: 669
A7: 2.6. | B7: Программа ПК, которая формирует у учителя (педагога) навыки в области цифровых технологий применительно к работе учителя (педагога); | C7: 1047
A8: 2.7. | B8: Программа ПК, которая формирует у учителя (педагога) навыки обучения детей с ограниченными возможностями здоровья (ОВЗ); | C8: 1504
A9: 2.8. | B9: Программа ПК, которая развивает у учителя (педагога) навыки оценивания обучающихся; | C9: 577
A10: 2.9. | B10: Программа ПК по подготовке тьюторов организаций ДОО, ДОД, СПО в области цифровых технологий; | C10: 144
A11: 2.10. | B11: Дистанционная программа ПК для отдельных категорий участников: старших воспитателей, воспитателей ДОО, учителей математики, русского языка, родного языка, обществознания, географии, педагогов по обучению детей с ограниченными возможностями здоровья, педагогов ДОД; | C11: 1056
A12: 2.11. | B12: Иное. | C12: 766
B13: Всего | C13: 15216

Sheet 2.1 (3360)
A1: 2.1 Программа ПК по совершенствованию предметной компетентности учителей (педагогов)
A2: № | B2: Предмет | C2: Всего | D2: Высшая квалификационная категория | E2: I квалификационная категория | F2: II квалификационная категория | G2: Без категории | H2: N
A3: 1 | B3: Директор (108 час.) | C3: =SUM(D3:H3) -> 36 | D3: 7 | E3: 19 | G3: 5 | H3: 5
A4: 2 | B4: Заместитель директора (108 час.) | C4: =SUM(D4:H4) -> 47 | D4: 8 | E4: 22 | F4: 1 | G4: 11 | H4: 5
A5: 3 | B5: Заместитель | C5: 24 | D5: 5 | E5: 13 | G5: 2 | H5: 4
A6: 4 | B6: Заведующий | C6: 0
A7: 5 | B7: Заведующий отделением | C7: 0
A8: 6 | B8: Заведующий филиалом | C8: 0
A9: 7 | B9: Педагог-библиотекарь (64 час.) | C9: 12 | E9: 1 | G9: 5 | H9: 6
A10: 8 | B10: Педагог-организатор (64 час.) | C10: 6 | E10: 4 | G10: 1 | H10: 1
A11: 9 | B11: Педагог-психолог (64 час.) | C11: 4 | D11: 1 | E11: 1 | G11: 2
A12: 10 | B12: Педагог доп. образования | C12: 7 | E12: 5 | G12: 2
A13: 11 | B13: Старший педагог дополнительного образования | C13: 0
A14: 12 | B14: Социальный педагог (64 час.) | C14: 0
A15: 13 | B15: Воспитатель | C15: 17 | E15: 8 | G15: 6 | H15: 3
A16: 14 | B16: Старший воспитатель | C16: 0
A17: 15 | B17: Специалист (64 час.) | C17: 0
A18: 16 | B18: Сотрудник | C18: 0
A19: 17 | B19: Мастер производственного обучения | C19: 0
A20: 18 | B20: Методист | C20: 0
A21: 19 | B21: Преподаватель | C21: 0
A22: 20 | B22: Тьютор | C22: 0
A23: 21 | B23: Учитель-дефектолог (96 час.) | C23: 0
A24: 22 | B24: Учитель-дефектолог (олигофренопедагог) | C24: 1 | E24: 1
A25: 23 | B25: Учитель-дефектолог (сурдопедагог) | C25: 0
A26: 24 | B26: Учитель-дефектолог (тифлопедагог) | C26: 1 | G26: 1
A27: 25 | B27: Учитель-логопед (64 час.) | C27: 0
A28: 26 | B28: Учитель (предмет не указан) | C28: 412 | D28: 50 | E28: 143 | F28: 5 | G28: 104 | H28: 110
A29: 27 | B29: Начальные классы (64 час.) | C29: 326 | D29: 72 | E29: 218 | G29: 16 | H29: 20
A30: 28 | B30: Рус.яз. и лит-ра (96 час.) | C30: 159 | D30: 53 | E30: 85 | F30: 2 | G30: 9 | H30: 10
A31: 29 | B31: Тат.яз и лит (96 час.) | C31: 216 | D31: 56 | E31: 149 | F31: 1 | G31: 3 | H31: 7
A32: 30 | B32: Марийский язык 196 час.) | C32: 0
A33: 31 | B33: Чувашский язык (96 час.) | C33: 0
A34: 32 | B34: Удм. язык (96 час.) | C34: 0
A35: =A34+1 -> 33 | B35: Родной язык и литература | C35: 13 | D35: 6 | E35: 7
A36: =A35+1 -> 34 | B36: Иностранный язык | C36: 141 | D36: 21 | E36: 87 | F36: 2 | G36: 14 | H36: 17
A37: 35 | B37: Анг.яз. (96 час.) | C37: 0
A38: 36 | B38: Франц.яз. (96 час.) | C38: 0
A39: 37 | B39: Немец.яз. (96 час.) | C39: 0
A40: 38 | B40: Математика (96 час.) | C40: 149 | D40: 23 | E40: 104 | G40: 11 | H40: 11
A41: 39 | B41: Информатика и ИКТ (96 час.) | C41: 26 | D41: 7 | E41: 17 | G41: 2
A42: 40 | B42: История и обществознание (96 час.) | C42: 107 | D42: 24 | E42: 61 | F42: 1 | G42: 13 | H42: 8
A43: 41 | B43: География (96 час.) | C43: 56 | D43: 8 | E43: 41 | G43: 5 | H43: 2
A44: 42 | B44: Физика (96 час.) | C44: 42 | D44: 5 | E44: 26 | G44: 5 | H44: 6
A45: 43 | B45: Химия (96 час.) | C45: 27 | D45: 9 | E45: 13 | F45: 1 | G45: 1 | H45: 3
A46: 44 | B46: Биология (96 час.) | C46: 67 | D46: 26 | E46: 35 | G46: 2 | H46: 4
A47: 45 | B47: ИЗО (96 час.) | C47: 0
A48: 46 | B48: Музыка (96 час.) | C48: 0
A49: 47 | B49: Искусство | C49: 47 | D49: 16 | E49: 27 | G49: 1 | H49: 3
A50: 48 | B50: Искусство танца | C50: 2 | D50: 2
A51: 49 | B51: Технология (96 час.) | C51: 52 | D51: 9 | E51: 37 | G51: 1 | H51: 5
A52: 50 | B52: ОБЖ (96 час.) | C52: 18 | D52: 4 | E52: 13 | G52: 1
A53: 51 | B53: Преподаватель-организатор основ безопасности жизнедеятельности | C53: 14 | D53: 7 | E53: 6 | G53: 1
A54: 52 | B54: Физ-ра (96 час.) | C54: 126 | D54: 40 | E54: 73 | F54: 1 | G54: 4 | H54: 8
A55: 53 | B55: Инструктор по физической культуре | C55: 1 | G55: 1
A56: 54 | B56: Тренер-преподаватель | C56: 0
A57: 55 | B57: ОРКСЭ (96 час.) | C57: 4 | E57: 1 | G57: 2 | H57: 1
A58: 56 | B58: Классный час | C58: 1 | E58: 1
A59: 57 | B59: Музыкальный руководитель | C59: 0
A60: 58 | B60: N | C60: 57 | D60: 9 | E60: 26 | G60: 10 | H60: 12
C61: =SUM(C3:C60) -> 2,218
A62: ДОО
A63: № | B63: Предмет | C63: Всего | D63: Высшая квалификационная категория | E63: I квалификационная категория | F63: II квалификационная категория | G63: Без категории | H63: N
A64: 1 | B64: Заведующий (72 час.) | C64: =SUM(D64:H64) -> 30 | D64: 5 | E64: 10 | F64: 2 | G64: 5 | H64: 8
A65: 2 | B65: Директор | C65: =SUM(D65:H65) -> 0
A66: 3 | B66: Заместитель | C66: 1 | E66: 1
A67: 4 | B67: Заместитель директора | C67: 0
A68: 5 | B68: Заместитель заведующего | C68: 1 | G68: 1
A69: 6 | B69: Воспитатель (64 час.) | C69: 503 | D69: 55 | E69: 312 | F69: 3 | G69: 74 | H69: 59
A70: 7 | B70: Дошкольник | C70: 1 | E70: 1
A71: 8 | B71: Инструктор по физ.культуре (64 час.) | C71: 25 | D71: 1 | E71: 12 | G71: 8 | H71: 4
A72: 9 | B72: Тренер-преподаватель | C72: 1 | E72: 1
A73: 10 | B73: Заведующий методическим кабинетом | C73: 0
A74: 11 | B74: Методист (64 час.) | C74: 2 | D74: 1 | E74: 1
A75: 12 | B75: Муз. руководитель (64 час.) | C75: 42 | D75: 10 | E75: 19 | G75: 4 | H75: 9
A76: 13 | B76: Педагог дополнительного образования | C76: 0
A77: 14 | B77: Педагог-организатор | C77: 0
A78: 15 | B78: Педагог-психолог (64 час.) | C78: 2 | D78: 1 | G78: 1
A79: 16 | B79: Преподаватель | C79: 0
A80: 17 | B80: Специалист | C80: 1 | G80: 1
A81: 18 | B81: Старший специалист | C81: 0
A82: 19 | B82: Старший воспитатель (64 час.) | C82: 33 | D82: 7 | E82: 23 | H82: 3
A83: 20 | B83: Учитель | C83: 0
A84: 21 | B84: Учитель-дефектолог | C84: 0
A85: 22 | B85: Учитель-дефектолог (олигофренопедагог) | C85: 0
A86: 23 | B86: Учитель-дефектолог (тифлопедагог) | C86: 0
A87: 24 | B87: Учитель-логопед (64 час.) | C87: 11 | D87: 3 | E87: 5 | G87: 3
A88: 25 | B88: N | C88: 3 | G88: 2 | H88: 1
C89: =SUM(C64:C88) -> 656
A90: ДОД
A91: № | B91: Предмет | C91: Всего | D91: Высшая квалификационная категория | E91: I квалификационная категория | F91: II квалификационная категория | G91: Без категории | H91: N
A92: 1 | B92: Директор (108 час.) | C92: =SUM(D92:H92) -> 3 | E92: 1 | G92: 1 | H92: 1
A93: 2 | B93: Заместитель (64 час.) | C93: =SUM(D93:H93) -> 3 | D93: 1 | H93: 2
A94: 3 | B94: Заместитель директора | C94: 6 | E94: 1 | G94: 3 | H94: 2
A95: 4 | B95: Заведующий (64 час.) | C95: 1 | D95: 1
A96: 5 | B96: Заведующий отделением | C96: 4 | E96: 1 | G96: 1 | H96: 2
A97: 6 | B97: Заведующий структурного подразделения | C97: 2 | H97: 2
A98: 7 | B98: Заведующий методическим кабинетом | C98: 0
A99: 8 | B99: Концертмейстер (64 час.) | C99: 1 | D99: 1
A100: 9 | B100: Методист (64 час.) | C100: 18 | E100: 7 | G100: 7 | H100: 4
A101: 10 | B101: Педагог доп.образования (64 час.) | C101: 92 | D101: 17 | E101: 38 | F101: 2 | G101: 15 | H101: 20
A102: 11 | B102: Педагог-организатор (64 час.) | C102: 2 | H102: 2
A103: 12 | B103: Педагог-психолог (64 час.) | C103: 0
A104: 13 | B104: Преподаватель (64 час.) | C104: 20 | D104: 8 | E104: 9 | F104: 1 | G104: 1 | H104: 1
A105: 14 | B105: Преподаватель ДМШ (64 час.) | C105: 3 | E105: 2 | H105: 1
A106: 15 | B106: Преподаватель ДХШ (64 час.) | C106: 0
A107: 16 | B107: Преподаватель ДШИ | C107: 4 | D107: 2 | E107: 1 | H107: 1
A108: 17 | B108: Учитель | C108: 1 | H108: 1
A109: 18 | B109: Тренер-преподаватель | C109: 0
A110: 19 | B110: N | C110: 0
A111: 20 | B111: Воспитатель | C111: 0
C112: =SUM(C92:C111) -> 160
A113: Районные учреждения образования | D113: ИМЦ, РОО
A114: № | B114: Предмет | C114: Всего | D114: Высшая квалификационная категория | E114: I квалификационная категория | F114: II квалификационная категория | G114: Без категории | H114: N
A115: 2 | B115: Заместитель | C115: =SUM(D115:H115) -> 2 | D115: 1 | H115: 1
B116: Заместитель начальника | C116: =SUM(D116:H116) -> 0
B117: Начальник | C117: 0
B118: Начальник отдела | C118: 0
A119: 3 | B119: Педагог-психолог | C119: 0
A120: 4 | B120: Методист | C120: 16 | D120: 4 | E120: 6 | G120: 3 | H120: 3
A121: 5 | B121: Старший методист | C121: 1 | D121: 1
A122: 6 | B122: Специалист | C122: 0
A123: 7 | B123: Ведущий специалист | C123: 0
B124: N | C124: 0
C125: =SUM(C115:C124) -> 19
A126: ПО
A127: № | B127: Предмет | C127: Всего | D127: Высшая квалификационная категория | E127: I квалификационная категория | F127: II квалификационная категория | G127: Без категории | H127: N
A128: 1 | B128: Воспитатель (64 час.) | C128: =SUM(D128:H128) -> 2 | G128: 1 | H128: 1
A129: 3 | B129: Директор (108 час.) | C129: =SUM(D129:H129) -> 2 | D129: 1 | H129: 1
A130: 4 | B130: Заведующий (96 час.) | C130: 1 | G130: 1
B131: Заведующий методическим кабинетом | C131: 0
A132: 6 | B132: Заведующий отделением (64 час.) | C132: 6 | D132: 3 | G132: 2 | H132: 1
A133: 8 | B133: Заведующий филиалом | C133: 1 | H133: 1
A134: 9 | B134: Заместитель | C134: 4 | D134: 2 | H134: 2
A135: 10 | B135: Заместитель директора | C135: 8 | D135: 1 | E135: 1 | G135: 3 | H135: 3
A136: 11 | B136: Музыкальный руководитель | C136: 0
A137: 12 | B137: Мастер производ.обучения | C137: 28 | D137: 5 | E137: 5 | G137: 7 | H137: 11
A138: 13 | B138: Методист | C138: 4 | D138: 1 | G138: 3
A139: 16 | B139: Педагог доп.образования (64 час.) | C139: 1 | G139: 1
A140: 17 | B140: Педагог-библиотекарь (64 час.) | C140: 0
A141: 18 | B141: Педагог-организатор (64 час.) | C141: 0
A142: 19 | B142: Педагог-психолог (64 час.) | C142: 0
A143: 21 | B143: Преподаватель (96 час.) | C143: 237 | D143: 77 | E143: 85 | F143: 2 | G143: 45 | H143: 28
A144: 23 | B144: Общепроф. дисциплины (96 час.) | C144: 0
B145: Учитель | C145: 1 | H145: 1
A146: 24 | B146: Социальный педагог (64 час.) | C146: 0
A147: 25 | B147: Старший мастер | C147: 2 | E147: 1 | H147: 1
A148: 28 | B148: Руководитель физического воспитания | C148: 1 | E148: 1
A149: 30 | B149: N | C149: =SUM(D149:H149) -> 6 | E149: 1 | G149: 4 | H149: 1
A150: 31 | B150: Концертмейстер | C150: =SUM(D150:H150) -> 0
C151: =SUM(C128:C150) -> 304
A152: Прочие (детские дома, центры психолого-медико-социального сопровождения, межшкольный учебный комбинат, вечерняя школа закрытого типа)
A153: № | B153: Предмет | C153: Всего | D153: Высшая квалификационная категория | E153: I квалификационная категория | F153: II квалификационная категория | G153: Без категории | H153: N
A154: 1 | B154: Воспитатель (64 час.) | C154: =SUM(D154:H154) -> 0
A155: 2 | B155: Директор (108 час.) | C155: =SUM(D155:H155) -> 0
A156: 3 | B156: Замиститель | C156: 0
A157: 4 | B157: Инструктор по туду | C157: 1 | E157: 1
A158: 5 | B158: Инструктор по физической культуре | C158: 0
A159: 6 | B159: Музыкальный руководитель | C159: 0
A160: 7 | B160: Педагог доп.образования (64 час.) | C160: 0
A161: 8 | B161: Педагог-организатор | C161: 0
A162: 9 | B162: Педагог-библиотекарь (96 час.) | C162: 0
A163: 10 | B163: Педагог-психолог (64 час.) | C163: 0
A164: 11 | B164: Преподаватель | C164: 0
A165: 12 | B165: Социальный педагог (72 час.) | C165: 0
A166: 13 | B166: Специалист | C166: 0
A167: 14 | B167: Учитель | C167: 0
A168: 15 | B168: Учитель-дефектолог (196 час.) | C168: 0
A169: 16 | B169: Учитель-логопед (64 час.) | C169: 0
A170: 17 | B170: Методист | C170: 2 | E170: 1 | G170: 1
A171: 18 | B171: N | C171: 0
C172: 3
C173: 3360

Sheet 2.2 (1008)
A1: 2.2. Программа ПК по совершенствованию психолого-педагогической и коммуникативной компетентности учителей (педагогов)
A2: № | B2: Предмет | C2: Всего | D2: Высшая квалификационная категория | E2: I квалификационная категория | F2: II квалификационная категория | G2: Без категории | H2: N
A3: 1 | B3: Директор (108 час.) | C3: =SUM(D3:H3) -> 2 | E3: 2
A4: 2 | B4: Заместитель директора (108 час.) | C4: 9 | D4: 3 | E4: 1 | G4: 2 | H4: 3
A5: 3 | B5: Заместитель | C5: 7 | E5: 7
A6: 4 | B6: Заведующий | C6: 0
A7: 5 | B7: Заведующий отделением | C7: 0
A8: 6 | B8: Заведующий филиалом | C8: 0
A9: 7 | B9: Педагог-библиотекарь (64 час.) | C9: 11 | E9: 3 | G9: 3 | H9: 5
A10: 8 | B10: Педагог-организатор (64 час.) | C10: 13 | D10: 2 | E10: 4 | G10: 5 | H10: 2
A11: 9 | B11: Педагог-психолог (64 час.) | C11: 20 | D11: 3 | E11: 6 | G11: 6 | H11: 5
A12: 10 | B12: Педагог доп. образования | C12: 11 | D12: 2 | E12: 6 | G12: 2 | H12: 1
A13: 11 | B13: Старший педагог дополнительного образования | C13: 0
A14: 12 | B14: Социальный педагог (64 час.) | C14: 3 | D14: 1 | H14: 2
A15: 13 | B15: Воспитатель | C15: 20 | D15: 1 | E15: 10 | G15: 3 | H15: 6
A16: 14 | B16: Старший воспитатель | C16: 0
A17: 15 | B17: Специалист (64 час.) | C17: 0
A18: 16 | B18: Сотрудник | C18: 0
A19: 17 | B19: Мастер производственного обучения | C19: 0
A20: 18 | B20: Методист | C20: 0
A21: 19 | B21: Преподаватель | C21: 0
A22: 20 | B22: Тьютор | C22: 0
A23: 21 | B23: Учитель-дефектолог (96 час.) | C23: 0
A24: 22 | B24: Учитель-дефектолог (олигофренопедагог) | C24: 0
A25: 23 | B25: Учитель-дефектолог (сурдопедагог) | C25: 1 | E25: 1
A26: 24 | B26: Учитель-дефектолог (тифлопедагог) | C26: 0
A27: 25 | B27: Учитель-логопед (64 час.) | C27: 0
A28: 26 | B28: Учитель (предмет не указан) | C28: 59 | D28: 1 | E28: 20 | G28: 20 | H28: 18
A29: 27 | B29: Начальные классы (64 час.) | C29: 55 | D29: 5 | E29: 36 | G29: 10 | H29: 4
A30: 28 | B30: Рус.яз. и лит-ра (96 час.) | C30: 14 | D30: 5 | E30: 6 | F30: 1 | G30: 1 | H30: 1
A31: 29 | B31: Тат.яз и лит (96 час.) | C31: 30 | D31: 8 | E31: 20 | F31: 1 | H31: 1
A32: 30 | B32: Марийский язык 196 час.) | C32: 0
A33: 31 | B33: Чувашский язык (96 час.) | C33: 0
A34: 32 | B34: Удм. язык (96 час.) | C34: 0
A35: =A34+1 -> 33 | B35: Иностранный язык | C35: 15 | D35: 5 | E35: 2 | F35: 1 | G35: 5 | H35: 2
A36: =A35+1 -> 34 | B36: Анг.яз. (96 час.) | C36: 0
A37: 35 | B37: Франц.яз. (96 час.) | C37: 0
A38: 36 | B38: Немец.яз. (96 час.) | C38: 0
A39: 37 | B39: Математика (96 час.) | C39: 4 | D39: 1 | E39: 1 | G39: 2
A40: 38 | B40: Информатика и ИКТ (96 час.) | C40: 1 | E40: 1
A41: 39 | B41: История и обществознание (96 час.) | C41: 5 | D41: 1 | E41: 2 | G41: 1 | H41: 1
A42: 40 | B42: География (96 час.) | C42: 2 | E42: 1 | G42: 1
A43: 41 | B43: Физика (96 час.) | C43: 1 | F43: 1
A44: 42 | B44: Химия (96 час.) | C44: 0
A45: 43 | B45: Биология (96 час.) | C45: 2 | E45: 1 | G45: 1
A46: 44 | B46: Искусство | C46: 8 | D46: 2 | E46: 4 | G46: 1 | H46: 1
A47: 45 | B47: ИЗО (96 час.) | C47: 0
A48: 46 | B48: Музыка (96 час.) | C48: 0
A49: 47 | B49: Технология (96 час.) | C49: 7 | E49: 5 | G49: 1 | H49: 1
A50: 48 | B50: ОБЖ (96 час.) | C50: 4 | D50: 1 | E50: 2 | H50: 1
A51: 49 | B51: Преподаватель-организатор основ безопасности жизнедеятельности | C51: 1 | E51: 1
A52: 50 | B52: Физ-ра (96 час.) | C52: 14 | D52: 3 | E52: 5 | G52: 4 | H52: 2
A53: 51 | B53: Инструктор по физической культуре | C53: 0
A54: 52 | B54: Тренер-преподаватель | C54: 0
A55: 53 | B55: ОРКСЭ (96 час.) | C55: 0
A56: 54 | B56: Классный час | C56: 0
A57: 55 | B57: Музыкальный руководитель | C57: 0
A58: 56 | B58: N | C58: 22 | D58: 3 | E58: 10 | G58: 7 | H58: 2
C59: =SUM(C3:C58) -> 341
A60: ДОО
A61: № | B61: Предмет | C61: Всего | D61: Высшая квалификационная категория | E61: I квалификационная категория | F61: II квалификационная категория | G61: Без категории | H61: N
A62: 1 | B62: Заведующий (72 час.) | C62: =SUM(D62:H62) -> 25 | D62: 1 | E62: 8 | G62: 8 | H62: 8
A63: 2 | B63: Директор | C63: =SUM(D63:H63) -> 0
A64: 3 | B64: Заместитель | C64: 1 | G64: 1
A65: 4 | B65: Заместитель директора | C65: 0
A66: 5 | B66: Заместитель заведующего | C66: 1 | E66: 1
A67: 6 | B67: Воспитатель (64 час.) | C67: 375 | D67: 36 | E67: 233 | G67: 64 | H67: 42
A68: 7 | B68: Дошкольник | C68: 0
A69: 8 | B69: Инструктор по физ.культуре (64 час.) | C69: 3 | E69: 2 | G69: 1
A70: 9 | B70: Тренер-преподаватель | C70: 0
A71: 10 | B71: Заведующий методическим кабинетом | C71: 0
A72: 11 | B72: Методист (64 час.) | C72: 2 | D72: 2
A73: 12 | B73: Муз. руководитель (64 час.) | C73: 20 | D73: 4 | E73: 11 | F73: 1 | G73: 3 | H73: 1
A74: 13 | B74: Педагог дополнительного образования | C74: 0
A75: 14 | B75: Педагог-организатор | C75: 0
A76: 15 | B76: Педагог-психолог (64 час.) | C76: 28 | D76: 3 | E76: 14 | G76: 8 | H76: 3
A77: 16 | B77: Преподаватель | C77: 0
A78: 17 | B78: Специалист | C78: 1 | E78: 1
A79: 18 | B79: Старший специалист | C79: 0
A80: 19 | B80: Старший воспитатель (64 час.) | C80: 7 | D80: 4 | E80: 3
A81: 20 | B81: Учитель | C81: 0
A82: 21 | B82: Учитель-дефектолог | C82: 0
A83: 22 | B83: Учитель-дефектолог (олигофренопедагог) | C83: 0
A84: 23 | B84: Учитель-дефектолог (тифлопедагог) | C84: 0
A85: 24 | B85: Учитель-логопед (64 час.) | C85: 9 | D85: 3 | E85: 5 | H85: 1
A86: 25 | B86: N | C86: 8 | D86: 1 | E86: 3 | F86: 1 | G86: 3
C87: =SUM(C62:C86) -> 480
A88: ДОД
A89: № | B89: Предмет | C89: Всего | D89: Высшая квалификационная категория | E89: I квалификационная категория | F89: II квалификационная категория | G89: Без категории | H89: N
A90: 1 | B90: Директор (108 час.) | C90: =SUM(D90:H90) -> 0
A91: 2 | B91: Заместитель (64 час.) | C91: =SUM(D91:H91) -> 1 | E91: 1
A92: 3 | B92: Заместитель директора | C92: 1 | H92: 1
A93: 4 | B93: Заведующий (64 час.) | C93: 4 | G93: 2 | H93: 2
A94: 5 | B94: Заведующий отделением | C94: 0
A95: 6 | B95: Заведующий структурного подразделения | C95: 0
A96: 7 | B96: Заведующий методическим кабинетом | C96: 0
A97: 8 | B97: Концертмейстер (64 час.) | C97: 7 | D97: 2 | E97: 3 | G97: 1 | H97: 1
A98: 9 | B98: Методист (64 час.) | C98: 5 | D98: 1 | E98: 2 | G98: 1 | H98: 1
A99: 10 | B99: Педагог доп.образования (64 час.) | C99: 34 | D99: 7 | E99: 12 | F99: 2 | G99: 5 | H99: 8
A100: 11 | B100: Педагог-организатор (64 час.) | C100: 2 | E100: 1 | H100: 1
A101: 12 | B101: Педагог-психолог (64 час.) | C101: 1 | G101: 1
A102: 13 | B102: Преподаватель (64 час.) | C102: 4 | D102: 1 | E102: 3
A103: 14 | B103: Преподаватель ДМШ (64 час.) | C103: 3 | E103: 2 | H103: 1
A104: 15 | B104: Преподаватель ДХШ (64 час.) | C104: 0
A105: 16 | B105: Преподаватель ДШИ | C105: 20 | D105: 9 | E105: 7 | G105: 2 | H105: 2
A106: 17 | B106: Учитель | C106: 0
A107: 18 | B107: Тренер-преподаватель | C107: 0
A108: 19 | B108: Социальный педагог | C108: 1 | E108: 1
A109: 20 | B109: N | C109: 0
C110: =SUM(C90:C109) -> 83
A111: Районные учреждения образования | D111: ИМЦ, РОО
A112: № | B112: Предмет | C112: Всего | D112: Высшая квалификационная категория | E112: I квалификационная категория | F112: II квалификационная категория | G112: Без категории | H112: N
A113: 2 | B113: Заместитель
B114: Заместитель начальника
B115: Начальник
B116: Начальник отдела
A117: 3 | B117: Педагог-психолог
A118: 4 | B118: Методист | C118: =SUM(D118:H118) -> 2 | D118: 2
A119: 5 | B119: Старший методист
A120: 6 | B120: Специалист
A121: 7 | B121: Ведущий специалист
B122: N
C123: 2
A124: ПО
A125: № | B125: Предмет | C125: Всего | D125: Высшая квалификационная категория | E125: I квалификационная категория | F125: II квалификационная категория | G125: Без категории | H125: N
A126: 1 | B126: Воспитатель (64 час.) | C126: =SUM(D126:H126) -> 3 | E126: 2 | G126: 1
A127: 3 | B127: Директор (108 час.) | C127: =SUM(D127:H127) -> 3 | D127: 1 | E127: 1 | H127: 1
A128: 4 | B128: Заведующий (96 час.) | C128: 0
B129: Заведующий методическим кабинетом | C129: 0
A130: 6 | B130: Заведующий отделением (64 час.) | C130: 1 | H130: 1
A131: 8 | B131: Заведующий филиалом | C131: 0
A132: 9 | B132: Заместитель | C132: 4 | D132: 2 | H132: 2
A133: 10 | B133: Заместитель директора | C133: 5 | D133: 1 | G133: 1 | H133: 3
A134: 11 | B134: Музыкальный руководитель | C134: 0
A135: 12 | B135: Мастер производ.обучения | C135: 5 | D135: 1 | E135: 3 | H135: 1
A136: 13 | B136: Методист | C136: 0
A137: 16 | B137: Педагог доп.образования (64 час.) | C137: 1 | G137: 1
A138: 17 | B138: Педагог-библиотекарь (64 час.) | C138: 0
A139: 18 | B139: Педагог-организатор (64 час.) | C139: 0
A140: 19 | B140: Педагог-психолог (64 час.) | C140: 1 | E140: 1
A141: 21 | B141: Преподаватель (96 час.) | C141: 0
A142: 23 | B142: Общепроф. дисциплины (96 час.) | C142: 56 | D142: 16 | E142: 21 | G142: 8 | H142: 11
B143: Учитель | C143: 0
A144: 24 | B144: Социальный педагог (64 час.) | C144: 0
A145: 25 | B145: Старший мастер | C145: 0
A146: 28 | B146: Преподаватель-организатор основ безопасности жизнедеятельности | C146: 1 | G146: 1
A147: 30 | B147: N | C147: 1 | G147: 1
C148: =SUM(C126:C147) -> 81
A149: Прочие (детские дома, центры психолого-медико-социального сопровождения, межшкольный учебный комбинат, вечерняя школа закрытого типа)
A150: № | B150: Предмет | C150: Всего | D150: Высшая квалификационная категория | E150: I квалификационная категория | F150: II квалификационная категория | G150: Без категории | H150: N
A151: 1 | B151: Воспитатель (64 час.) | C151: 8 | E151: 7 | G151: 1
A152: 2 | B152: Директор (108 час.) | C152: 2 | D152: 1 | G152: 1
A153: 3 | B153: Замиститель
A154: 4 | B154: Инструктор по туду | C154: 2 | E154: 1 | G154: 1
A155: 5 | B155: Инструктор по физической культуре | C155: 1 | G155: 1
A156: 6 | B156: Музыкальный руководитель
A157: 7 | B157: Педагог доп.образования (64 час.) | C157: 4 | E157: 1 | G157: 2 | H157: 1
A158: 8 | B158: Педагог-организатор
A159: 9 | B159: Педагог-библиотекарь (96 час.)
A160: 10 | B160: Педагог-психолог (64 час.)
A161: 11 | B161: Преподаватель
A162: 12 | B162: Социальный педагог (72 час.) | C162: 3 | G162: 1 | H162: 2
A163: 13 | B163: Специалист
A164: 14 | B164: Учитель
A165: 15 | B165: Учитель-дефектолог (196 час.)
A166: 16 | B166: Учитель-логопед (64 час.) | C166: 1 | H166: 1
A167: 17 | B167: N
C168: 21
C169: 1008

Sheet 2.3 (2731)
A1: 2.3 Программа ПК, в которую включены модули, одновременно отражающие ключевые направления профессионального развития учителя (педагога): предметное, методическое, психолого-педагогическое, коммуникативное
A2: № | B2: Предмет | C2: Всего | D2: Высшая квалификационная категория | E2: I квалификационная категория | F2: II квалификационная категория | G2: Без категории | H2: N
A3: 1 | B3: Директор (108 час.) | C3: =SUM(D3:H3) -> 44 | D3: 6 | E3: 26 | G3: 6 | H3: 6
A4: 2 | B4: Заместитель директора (108 час.) | C4: 57 | D4: 5 | E4: 20 | G4: 20 | H4: 12
A5: 3 | B5: Заместитель | C5: 39 | D5: 6 | E5: 24 | G5: 4 | H5: 5
A6: 4 | B6: Заведующий | C6: 0
A7: 5 | B7: Заведующий отделением | C7: 0
A8: 6 | B8: Заведующий филиалом | C8: 0
A9: 7 | B9: Педагог-библиотекарь (64 час.) | C9: 13 | E9: 5 | G9: 2 | H9: 6
A10: 8 | B10: Педагог-организатор (64 час.) | C10: 7 | D10: 1 | E10: 3 | G10: 1 | H10: 2
A11: 9 | B11: Педагог-психолог (64 час.) | C11: 8 | D11: 1 | E11: 3 | G11: 3 | H11: 1
A12: 10 | B12: Педагог доп. образования | C12: 9 | D12: 2 | E12: 4 | F12: 1 | H12: 2
A13: 11 | B13: Старший педагог дополнительного образования | C13: 0
A14: 12 | B14: Социальный педагог (64 час.) | C14: 1 | E14: 1
A15: 13 | B15: Воспитатель | C15: 29 | E15: 17 | F15: 2 | G15: 6 | H15: 4
A16: 14 | B16: Старший воспитатель | C16: 0
A17: 15 | B17: Специалист (64 час.) | C17: 0
A18: 16 | B18: Сотрудник | C18: 0
A19: 17 | B19: Мастер производственного обучения | C19: 0
A20: 18 | B20: Методист | C20: 0
A21: 19 | B21: Преподаватель | C21: 0
A22: 20 | B22: Тьютор | C22: 0
A23: 21 | B23: Учитель-дефектолог (96 час.) | C23: 0
A24: 22 | B24: Учитель-дефектолог (олигофренопедагог) | C24: 0
A25: 23 | B25: Учитель-дефектолог (сурдопедагог) | C25: 0
A26: 24 | B26: Учитель-дефектолог (тифлопедагог) | C26: 0
A27: 25 | B27: Учитель-логопед (64 час.) | C27: 3 | D27: 1 | E27: 1 | H27: 1
A28: 26 | B28: Учитель (предмет не указан) | C28: 219 | D28: 30 | E28: 73 | F28: 2 | G28: 67 | H28: 47
A29: 27 | B29: Начальные классы (64 час.) | C29: 193 | D29: 31 | E29: 126 | F29: 4 | G29: 21 | H29: 11
A30: 28 | B30: Рус.яз. и лит-ра (96 час.) | C30: 89 | D30: 35 | E30: 41 | G30: 5 | H30: 8
A31: 29 | B31: Тат.яз и лит (96 час.) | C31: 112 | D31: 17 | E31: 81 | G31: 2 | H31: 12
A32: 30 | B32: Марийский язык 196 час.) | C32: 0
A33: 31 | B33: Чувашский язык (96 час.) | C33: 0
A34: 32 | B34: Удм. язык (96 час.) | C34: 0
A35: =A34+1 -> 33 | B35: Родной язык и литература | C35: 8 | D35: 3 | E35: 4 | G35: 1
A36: =A35+1 -> 34 | B36: Иностранный язык | C36: 93 | D36: 11 | E36: 51 | G36: 14 | H36: 17
A37: 35 | B37: Анг.яз. (96 час.) | C37: 0
A38: 36 | B38: Франц.яз. (96 час.) | C38: 0
A39: 37 | B39: Немец.яз. (96 час.) | C39: 0
A40: 38 | B40: Математика (96 час.) | C40: 68 | D40: 9 | E40: 47 | F40: 2 | G40: 4 | H40: 6
A41: 39 | B41: Информатика и ИКТ (96 час.) | C41: 17 | D41: 5 | E41: 11 | H41: 1
A42: 40 | B42: История и обществознание (96 час.) | C42: 51 | D42: 12 | E42: 33 | F42: 2 | G42: 2 | H42: 2
A43: 41 | B43: География (96 час.) | C43: 18 | D43: 2 | E43: 8 | G43: 5 | H43: 3
A44: 42 | B44: Физика (96 час.) | C44: 17 | D44: 5 | E44: 11 | H44: 1
A45: 43 | B45: Химия (96 час.) | C45: 16 | D45: 6 | E45: 8 | G45: 2
A46: 44 | B46: Биология (96 час.) | C46: 31 | D46: 9 | E46: 19 | G46: 1 | H46: 2
A47: 45 | B47: Искусство | C47: 19 | D47: 5 | E47: 9 | G47: 2 | H47: 3
A48: 46 | B48: ИЗО (96 час.) | C48: 0
A49: 47 | B49: Музыка (96 час.) | C49: 0
A50: 48 | B50: Технология (96 час.) | C50: 27 | D50: 9 | E50: 16 | H50: 2
A51: 49 | B51: ОБЖ (96 час.) | C51: 4 | D51: 1 | G51: 1 | H51: 2
A52: 50 | B52: Преподаватель-организатор основ безопасности жизнедеятельности | C52: 9 | D52: 1 | E52: 5 | G52: 1 | H52: 2
A53: 51 | B53: Физ-ра (96 час.) | C53: 46 | D53: 8 | E53: 31 | F53: 1 | G53: 3 | H53: 3
A54: 52 | B54: Инструктор по физической культуре | C54: 0
A55: 53 | B55: Тренер-преподаватель | C55: 0
A56: 54 | B56: ОРКСЭ (96 час.) | C56: 1 | E56: 1
A57: 55 | B57: Классный час | C57: 0
A58: 56 | B58: Музыкальный руководитель | C58: 1 | E58: 1
A59: 57 | B59: N | C59: 69 | D59: 12 | E59: 35 | F59: 2 | G59: 8 | H59: 12
C60: =SUM(C3:C59) -> 1,318
A61: ДОО
A62: № | B62: Предмет | C62: Всего | D62: Высшая квалификационная категория | E62: I квалификационная категория | F62: II квалификационная категория | G62: Без категории | H62: N
A63: 1 | B63: Заведующий (72 час.) | C63: =SUM(D63:H63) -> 72 | D63: 8 | E63: 16 | F63: 1 | G63: 28 | H63: 19
A64: 2 | B64: Директор | C64: =SUM(D64:H64) -> 2 | E64: 1 | H64: 1
A65: 3 | B65: Заместитель | C65: 2 | E65: 1 | H65: 1
A66: 4 | B66: Заместитель директора | C66: 0
A67: 5 | B67: Заместитель заведующего | C67: 3 | D67: 1 | E67: 1 | G67: 1
A68: 6 | B68: Воспитатель (64 час.) | C68: 692 | D68: 55 | E68: 427 | F68: 2 | G68: 110 | H68: 98
A69: 7 | B69: Дошкольник | C69: 0
A70: 8 | B70: Инструктор по физ.культуре (64 час.) | C70: 21 | D70: 5 | E70: 8 | G70: 5 | H70: 3
A71: 9 | B71: Тренер-преподаватель | C71: 1 | H71: 1
A72: 10 | B72: Заведующий методическим кабинетом | C72: 0
A73: 11 | B73: Методист (64 час.) | C73: 3 | D73: 2 | E73: 1
A74: 12 | B74: Муз. руководитель (64 час.) | C74: 76 | D74: 26 | E74: 34 | G74: 7 | H74: 9
A75: 13 | B75: Педагог дополнительного образования | C75: 0
A76: 14 | B76: Педагог-организатор | C76: 0
A77: 15 | B77: Педагог-психолог (64 час.) | C77: 13 | D77: 1 | E77: 7 | G77: 4 | H77: 1
A78: 16 | B78: Преподаватель | C78: 0
A79: 17 | B79: Специалист | C79: 2 | D79: 1 | H79: 1
A80: 18 | B80: Старший специалист | C80: 0
A81: 19 | B81: Старший воспитатель (64 час.) | C81: 38 | D81: 15 | E81: 21 | G81: 1 | H81: 1
A82: 20 | B82: Учитель | C82: 2 | E82: 2
A83: 21 | B83: Учитель-дефектолог | C83: 3 | D83: 1 | E83: 2
A84: 22 | B84: Учитель-дефектолог (олигофренопедагог) | C84: 0
A85: 23 | B85: Учитель-дефектолог (тифлопедагог) | C85: 0
A86: 24 | B86: Учитель-логопед (64 час.) | C86: 19 | D86: 3 | E86: 12 | G86: 2 | H86: 2
A87: 25 | B87: N | C87: 2 | E87: 1 | F87: 1
C88: =SUM(C63:C87) -> 951
A89: ДОД
A90: № | B90: Предмет | C90: Всего | D90: Высшая квалификационная категория | E90: I квалификационная категория | F90: II квалификационная категория | G90: Без категории | H90: N
A91: 1 | B91: Директор (108 час.) | C91: =SUM(D91:H91) -> 6 | D91: 1 | E91: 2 | G91: 2 | H91: 1
A92: 2 | B92: Заместитель (64 час.) | C92: =SUM(D92:H92) -> 4 | D92: 3 | E92: 1
A93: 3 | B93: Заместитель директора | C93: 1 | G93: 1
A94: 4 | B94: Заведующий (64 час.) | C94: 10 | D94: 1 | E94: 2 | G94: 2 | H94: 5
A95: 5 | B95: Заведующий отделением | C95: 8 | E95: 4 | G95: 1 | H95: 3
A96: 6 | B96: Заведующий структурного подразделения | C96: 4 | G96: 2 | H96: 2
A97: 7 | B97: Заведующий методическим кабинетом | C97: 0
A98: 8 | B98: Концертмейстер (64 час.) | C98: 3 | D98: 1 | E98: 2
A99: 9 | B99: Методист (64 час.) | C99: 14 | D99: 2 | E99: 7 | G99: 2 | H99: 3
A100: 10 | B100: Педагог доп.образования (64 час.) | C100: 114 | D100: 28 | E100: 42 | G100: 16 | H100: 28
A101: 11 | B101: Педагог-организатор (64 час.) | C101: 5 | E101: 3 | G101: 1 | H101: 1
A102: 12 | B102: Педагог-психолог (64 час.) | C102: 3 | D102: 2 | E102: 1
A103: 13 | B103: Преподаватель (64 час.) | C103: 12 | D103: 2 | E103: 8 | G103: 1 | H103: 1
A104: 14 | B104: Преподаватель ДМШ (64 час.) | C104: 10 | D104: 4 | E104: 3 | G104: 1 | H104: 2
A105: 15 | B105: Преподаватель ДХШ (64 час.) | C105: 0
A106: 16 | B106: Преподаватель ДШИ | C106: 7 | D106: 2 | E106: 1 | G106: 2 | H106: 2
A107: 17 | B107: Учитель | C107: 0
A108: 18 | B108: Тренер-преподаватель | C108: 0
A109: 19 | B109: N | C109: 2 | G109: 1 | H109: 1
C110: =SUM(C91:C109) -> 203
A111: Районные учреждения образования | D111: ИМЦ, РОО
A112: № | B112: Предмет | C112: Всего | D112: Высшая квалификационная категория | E112: I квалификационная категория | F112: II квалификационная категория | G112: Без категории | H112: N
A113: 2 | B113: Заместитель | C113: =SUM(D113:H113) -> 3 | E113: 2 | H113: 1
B114: Заместитель начальника | C114: =SUM(D114:H114) -> 2 | G114: 1 | H114: 1
B115: Начальник | C115: 1 | H115: 1
B116: Начальник отдела | C116: 0
A117: 3 | B117: Педагог-психолог | C117: 1 | G117: 1
A118: 4 | B118: Методист | C118: 25 | D118: 7 | E118: 11 | G118: 2 | H118: 5
A119: 5 | B119: Старший методист | C119: 0
A120: 6 | B120: Специалист | C120: 1 | E120: 1
A121: 7 | B121: Ведущий специалист | C121: 0
B122: N | C122: 2 | E122: 2
C123: =SUM(C113:C122) -> 35
A124: ПО
A125: № | B125: Предмет | C125: Всего | D125: Высшая квалификационная категория | E125: I квалификационная категория | F125: II квалификационная категория | G125: Без категории | H125: N
A126: 1 | B126: Воспитатель (64 час.) | C126: =SUM(D126:H126) -> 3 | E126: 2 | H126: 1
A127: =A126+1 -> 2 | B127: Директор (108 час.) | C127: =SUM(D127:H127) -> 3 | D127: 2 | H127: 1
A128: =A127+1 -> 3 | B128: Заведующий (96 час.) | C128: 1 | G128: 1
A129: 4 | B129: Заведующий методическим кабинетом | C129: 0
A130: 5 | B130: Заведующий отделением (64 час.) | C130: 2 | D130: 1 | E130: 1
A131: 6 | B131: Заведующий филиалом | C131: 0
A132: 7 | B132: Заместитель | C132: 3 | E132: 2 | H132: 1
A133: 8 | B133: Заместитель директора | C133: 4 | D133: 1 | E133: 1 | G133: 1 | H133: 1
A134: 9 | B134: Музыкальный руководитель | C134: 0
A135: 10 | B135: Мастер производ.обучения | C135: 37 | D135: 2 | E135: 16 | G135: 11 | H135: 8
A136: 11 | B136: СтаршиймМетодист | C136: 1 | D136: 1
A137: 12 | B137: Методист | C137: 1 | E137: 1
A138: 13 | B138: Педагог доп.образования (64 час.) | C138: 1 | D138: 1
A139: 14 | B139: Педагог-библиотекарь (64 час.) | C139: 0
A140: 15 | B140: Педагог-организатор (64 час.) | C140: 0
A141: 16 | B141: Педагог-психолог (64 час.) | C141: 0
A142: 17 | B142: Преподаватель (96 час.) | C142: 154 | D142: 43 | E142: 60 | G142: 25 | H142: 26
A143: 18 | B143: Общепроф. дисциплины (96 час.) | C143: 0
A144: 19 | B144: Учитель | C144: 1 | E144: 1
A145: 20 | B145: Социальный педагог (64 час.) | C145: 0
A146: 21 | B146: Старший мастер | C146: 1 | H146: 1
A147: 22 | B147: Преподаватель-организатор основ безопасности | C147: 1 | D147: 1
A148: 23 | B148: Руководитель физического воспитания | C148: 1 | D148: 1
A149: 24 | B149: N | C149: 1 | H149: 1
A150: 25 | B150: Концертмейстер | C150: 1 | E150: 1
C151: =SUM(C126:C150) -> 216
A152: Прочие (детские дома, центры психолого-медико-социального сопровождения, межшкольный учебный комбинат, вечерняя школа закрытого типа)
A153: № | B153: Предмет | C153: Всего | D153: Высшая квалификационная категория | E153: I квалификационная категория | F153: II квалификационная категория | G153: Без категории | H153: N
A154: 1 | B154: Воспитатель (64 час.) | C154: 5 | E154: 1 | G154: 1 | H154: 3
A155: 2 | B155: Директор (108 час.)
A156: 3 | B156: Замиститель
A157: 4 | B157: Инструктор по туду | C157: 3 | D157: 1 | E157: 1 | H157: 1
A158: 5 | B158: Инструктор по физической культуре
A159: 6 | B159: Музыкальный руководитель
A160: 7 | B160: Педагог доп.образования (64 час.)
A161: 8 | B161: Педагог-организатор
A162: 9 | B162: Педагог-библиотекарь (96 час.)
A163: 10 | B163: Педагог-психолог (64 час.)
A164: 11 | B164: Преподаватель
A165: 12 | B165: Социальный педагог (72 час.)
A166: 13 | B166: Специалист
A167: 14 | B167: Учитель
A168: 15 | B168: Учитель-дефектолог (196 час.)
A169: 16 | B169: Учитель-логопед (64 час.)
A170: 17 | B170: N
C171: 8
C172: 2741

Sheet 2.4 (2354)
A1: 2.4. Программа ПК, которая формирует у учителя(педагога) навыки развития у обучающихся метапредметных умений (например, креативность, критическое мышление, умение решать проблемы и др.)
A2: № | B2: Предмет | C2: Всего | D2: Высшая квалификационная категория | E2: I квалификационная категория | F2: II квалификационная категория | G2: Без категории | H2: N
A3: 1 | B3: Директор (108 час.) | C3: =SUM(D3:H3) -> 26 | D3: 6 | E3: 18 | G3: 2
A4: 2 | B4: Заместитель директора (108 час.) | C4: 28 | D4: 5 | E4: 12 | G4: 4 | H4: 7
A5: 3 | B5: Заместитель | C5: 34 | D5: 7 | E5: 14 | G5: 4 | H5: 9
A6: 4 | B6: Заведующий | C6: 0
A7: 5 | B7: Заведующий отделением | C7: 0
A8: 6 | B8: Заведующий филиалом | C8: 0
A9: 7 | B9: Педагог-библиотекарь (64 час.) | C9: 11 | E9: 2 | F9: 1 | G9: 2 | H9: 6
A10: 8 | B10: Педагог-организатор (64 час.) | C10: 15 | D10: 1 | E10: 7 | G10: 2 | H10: 5
A11: 9 | B11: Педагог-психолог (64 час.) | C11: 7 | D11: 2 | E11: 2 | G11: 2 | H11: 1
A12: 10 | B12: Педагог доп. образования | C12: 3 | E12: 1 | H12: 2
A13: 11 | B13: Старший педагог дополнительного образования | C13: 0
A14: 12 | B14: Социальный педагог (64 час.) | C14: 0
A15: 13 | B15: Воспитатель | C15: 31 | D15: 1 | E15: 18 | G15: 8 | H15: 4
A16: 14 | B16: Старший воспитатель | C16: 0
A17: 15 | B17: Специалист (64 час.) | C17: 1 | E17: 1
A18: 16 | B18: Сотрудник | C18: 0
A19: 17 | B19: Мастер производственного обучения | C19: 0
A20: 18 | B20: Методист | C20: 0
A21: 19 | B21: Преподаватель | C21: 0
A22: 20 | B22: Тьютор | C22: 1 | E22: 1
A23: 21 | B23: Учитель-дефектолог (96 час.) | C23: 2 | E23: 1 | H23: 1
A24: 22 | B24: Учитель-дефектолог (олигофренопедагог) | C24: 0
A25: 23 | B25: Учитель-дефектолог (сурдопедагог) | C25: 0
A26: 24 | B26: Учитель-дефектолог (тифлопедагог) | C26: 0
A27: 25 | B27: Учитель-логопед (64 час.) | C27: 1 | G27: 1
A28: 26 | B28: Учитель (предмет не указан) | C28: 283 | D28: 24 | E28: 130 | F28: 3 | G28: 62 | H28: 64
A29: 27 | B29: Начальные классы (64 час.) | C29: 396 | D29: 87 | E29: 266 | F29: 3 | G29: 17 | H29: 23
A30: 28 | B30: Рус.яз. и лит-ра (96 час.) | C30: 102 | D30: 38 | E30: 51 | G30: 8 | H30: 5
A31: 29 | B31: Тат.яз и лит (96 час.) | C31: 121 | D31: 32 | E31: 77 | F31: 2 | G31: 3 | H31: 7
A32: 30 | B32: Марийский язык 196 час.) | C32: 0
A33: 31 | B33: Чувашский язык (96 час.) | C33: 0
A34: 32 | B34: Удм. язык (96 час.) | C34: 0
A35: =A34+1 -> 33 | B35: Родной язык и литература | C35: 10 | E35: 8 | G35: 1 | H35: 1
A36: =A35+1 -> 34 | B36: Иностранный язык | C36: 92 | D36: 9 | E36: 59 | F36: 1 | G36: 11 | H36: 12
A37: 35 | B37: Анг.яз. (96 час.) | C37: 0
A38: 36 | B38: Франц.яз. (96 час.) | C38: 0
A39: 37 | B39: Немец.яз. (96 час.) | C39: 0
A40: 38 | B40: Математика (96 час.) | C40: 78 | D40: 7 | E40: 62 | F40: 2 | G40: 2 | H40: 5
A41: 39 | B41: Информатика и ИКТ (96 час.) | C41: 18 | D41: 3 | E41: 10 | G41: 2 | H41: 3
A42: 40 | B42: История и обществознание (96 час.) | C42: 64 | D42: 12 | E42: 40 | G42: 5 | H42: 7
A43: 41 | B43: География (96 час.) | C43: 36 | D43: 10 | E43: 18 | G43: 3 | H43: 5
A44: 42 | B44: Физика (96 час.) | C44: 25 | D44: 5 | E44: 19 | G44: 1
A45: 43 | B45: Химия (96 час.) | C45: 21 | D45: 10 | E45: 10 | G45: 1
A46: 44 | B46: Биология (96 час.) | C46: 33 | D46: 10 | E46: 20 | H46: 3
A47: 45 | B47: Искусство | C47: 32 | D47: 7 | E47: 21 | G47: 4
A48: 46 | B48: ИЗО (96 час.) | C48: 0
A49: 47 | B49: Музыка (96 час.) | C49: 0
A50: 48 | B50: Технология (96 час.) | C50: 25 | D50: 5 | E50: 16 | F50: 1 | G50: 1 | H50: 2
A51: 49 | B51: ОБЖ (96 час.) | C51: 11 | D51: 3 | E51: 5 | G51: 2 | H51: 1
A52: 50 | B52: Преподаватель-организатор основ безопасности жизнедеятельности | C52: 7 | D52: 3 | E52: 4
A53: 51 | B53: Физ-ра (96 час.) | C53: 41 | D53: 7 | E53: 27 | G53: 3 | H53: 4
A54: 52 | B54: Инструктор по физической культуре | C54: 0
A55: 53 | B55: Тренер-преподаватель | C55: 1 | H55: 1
A56: 54 | B56: ОРКСЭ (96 час.) | C56: 1 | D56: 1
A57: 55 | B57: Классный час | C57: 0
A58: 56 | B58: Музыкальный руководитель | C58: 0
A59: 57 | B59: N | C59: 109 | D59: 25 | E59: 57 | F59: 1 | G59: 13 | H59: 13
C60: =SUM(C3:C59) -> 1,666
A61: ДОО
A62: № | B62: Предмет | C62: Всего | D62: Высшая квалификационная категория | E62: I квалификационная категория | F62: II квалификационная категория | G62: Без категории | H62: N
A63: 1 | B63: Заведующий (72 час.) | C63: =SUM(D63:H63) -> 25 | D63: 2 | E63: 7 | G63: 8 | H63: 8
A64: 2 | B64: Директор | C64: =SUM(D64:H64) -> 1 | D64: 1
A65: 3 | B65: Заместитель | C65: 1 | D65: 1
A66: 4 | B66: Заместитель директора | C66: 0
A67: 5 | B67: Заместитель заведующего | C67: 0
A68: 6 | B68: Воспитатель (64 час.) | C68: 425 | D68: 59 | E68: 241 | F68: 4 | G68: 68 | H68: 53
A69: 7 | B69: Дошкольник | C69: 0
A70: 8 | B70: Инструктор по физ.культуре (64 час.) | C70: 9 | D70: 1 | E70: 5 | G70: 3
A71: 9 | B71: Тренер-преподаватель | C71: 0
A72: 10 | B72: Заведующий методическим кабинетом | C72: 0
A73: 11 | B73: Методист (64 час.) | C73: 1 | E73: 1
A74: 12 | B74: Муз. руководитель (64 час.) | C74: 31 | D74: 5 | E74: 25 | G74: 1
A75: 13 | B75: Педагог дополнительного образования | C75: 0
A76: 14 | B76: Педагог-организатор | C76: 0
A77: 15 | B77: Педагог-психолог (64 час.) | C77: 6 | E77: 2 | G77: 3 | H77: 1
A78: 16 | B78: Преподаватель | C78: 0
A79: 17 | B79: Специалист | C79: 0
A80: 18 | B80: Старший специалист | C80: 0
A81: 19 | B81: Старший воспитатель (64 час.) | C81: 16 | D81: 5 | E81: 9 | H81: 2
A82: 20 | B82: Учитель | C82: 1 | E82: 1
A83: 21 | B83: Учитель-дефектолог | C83: 0
A84: 22 | B84: Учитель-дефектолог (олигофренопедагог) | C84: 0
A85: 23 | B85: Учитель-дефектолог (тифлопедагог) | C85: 0
A86: 24 | B86: Учитель-логопед (64 час.) | C86: 1 | H86: 1
A87: 25 | B87: N | C87: 7 | E87: 3 | G87: 1 | H87: 3
C88: =SUM(C63:C87) -> 524
A89: ДОД
A90: № | B90: Предмет | C90: Всего | D90: Высшая квалификационная категория | E90: I квалификационная категория | F90: II квалификационная категория | G90: Без категории | H90: N
A91: 1 | B91: Директор (108 час.) | C91: =SUM(D91:H91) -> 1 | D91: 1
A92: 2 | B92: Заместитель (64 час.) | C92: =SUM(D92:H92) -> 0
A93: 3 | B93: Заместитель директора | C93: 1 | H93: 1
A94: 4 | B94: Заведующий (64 час.) | C94: 0
A95: 5 | B95: Заведующий отделением | C95: 1 | G95: 1
A96: 6 | B96: Заведующий структурного подразделения | C96: 0
A97: 7 | B97: Заведующий методическим кабинетом | C97: 0
A98: 8 | B98: Концертмейстер (64 час.) | C98: 0
A99: 9 | B99: Методист (64 час.) | C99: 4 | D99: 2 | E99: 1 | G99: 1
A100: 10 | B100: Педагог доп.образования (64 час.) | C100: 70 | D100: 12 | E100: 25 | G100: 11 | H100: 22
A101: 11 | B101: Педагог-организатор (64 час.) | C101: 2 | G101: 1 | H101: 1
A102: 12 | B102: Педагог-психолог (64 час.) | C102: 1 | E102: 1
A103: 13 | B103: Преподаватель (64 час.) | C103: 7 | D103: 1 | E103: 4 | H103: 2
A104: 14 | B104: Преподаватель ДМШ (64 час.) | C104: 2 | D104: 1 | G104: 1
A105: 15 | B105: Преподаватель ДХШ (64 час.) | C105: 1 | E105: 1
A106: 16 | B106: Преподаватель ДШИ | C106: 2 | D106: 1 | H106: 1
A107: 17 | B107: Учитель | C107: 0
A108: 18 | B108: Тренер-преподаватель | C108: 0
A109: 19 | B109: N | C109: 0
A110: 20 | B110: Воспитатель | C110: 1 | D110: 1
C111: =SUM(C91:C110) -> 93
A112: Районные учреждения образования
A113: № | B113: Предмет | C113: Всего | D113: Высшая квалификационная категория | E113: I квалификационная категория | F113: II квалификационная категория | G113: Без категории | H113: N
A114: 2 | B114: Заместитель
B115: Заместитель начальника
B116: Начальник
B117: Начальник отдела
A118: 3 | B118: Педагог-психолог
A119: 4 | B119: Методист | C119: 7 | D119: 3 | E119: 3 | H119: 1
A120: 5 | B120: Старший методист
A121: 6 | B121: Специалист
A122: 7 | B122: Ведущий специалист
B123: N
C124: 7
A125: ПО
A126: № | B126: Предмет | C126: Всего | D126: Высшая квалификационная категория | E126: I квалификационная категория | F126: II квалификационная категория | G126: Без категории | H126: N
A127: 1 | B127: Воспитатель (64 час.) | C127: =SUM(D127:H127) -> 1 | H127: 1
A128: 3 | B128: Директор (108 час.) | C128: =SUM(D128:H128) -> 1 | E128: 1
A129: 4 | B129: Заведующий (96 час.) | C129: 0
B130: Заведующий методическим кабинетом | C130: 0
A131: 6 | B131: Заведующий отделением (64 час.) | C131: 1 | D131: 1
A132: 8 | B132: Заведующий филиалом | C132: 0
A133: 9 | B133: Заместитель | C133: 3 | D133: 1 | E133: 2
A134: 10 | B134: Заместитель директора | C134: 2 | G134: 1 | H134: 1
A135: 11 | B135: Музыкальный руководитель | C135: 0
A136: 12 | B136: Мастер производ.обучения | C136: 3 | E136: 2 | H136: 1
A137: 13 | B137: Методист | C137: 0
A138: 16 | B138: Педагог доп.образования (64 час.) | C138: 1 | D138: 1
A139: 17 | B139: Педагог-библиотекарь (64 час.) | C139: 1 | G139: 1
A140: 18 | B140: Педагог-организатор (64 час.) | C140: 0
A141: 19 | B141: Педагог-психолог (64 час.) | C141: 1 | E141: 1
A142: 21 | B142: Преподаватель (96 час.) | C142: 46 | D142: 11 | E142: 20 | G142: 6 | H142: 9
A143: 23 | B143: Общепроф. дисциплины (96 час.) | C143: 0
B144: Учитель | C144: 0
A145: 24 | B145: Социальный педагог (64 час.) | C145: 0
A146: 25 | B146: Старший мастер | C146: 0
A147: 28 | B147: Руководитель физического воспитания | C147: 0
A148: 30 | B148: N | C148: 1 | D148: 1
A149: 31 | B149: Преподаватель-организатор основ безопасности жизнедеятельности | C149: 0
C150: =SUM(C127:C149) -> 61
A151: Прочие (детские дома, центры психолого-медико-социального сопровождения, межшкольный учебный комбинат, вечерняя школа закрытого типа)
A152: № | B152: Предмет | C152: Всего | D152: Высшая квалификационная категория | E152: I квалификационная категория | F152: II квалификационная категория | G152: Без категории | H152: N
A153: 1 | B153: Воспитатель (64 час.)
A154: 2 | B154: Директор (108 час.)
A155: 3 | B155: Замиститель
A156: 4 | B156: Инструктор по туду
A157: 5 | B157: Инструктор по физической культуре
A158: 6 | B158: Музыкальный руководитель | C158: 1 | D158: 1
A159: 7 | B159: Педагог доп.образования (64 час.) | C159: 1 | E159: 1
A160: 8 | B160: Педагог-организатор | C160: 1 | E160: 1
A161: 9 | B161: Педагог-библиотекарь (96 час.)
A162: 10 | B162: Педагог-психолог (64 час.)
A163: 11 | B163: Преподаватель
A164: 12 | B164: Социальный педагог (72 час.)
A165: 13 | B165: Специалист
A166: 14 | B166: Учитель
A167: 15 | B167: Учитель-дефектолог (196 час.)
A168: 16 | B168: Учитель-логопед (64 час.)
A169: 17 | B169: N
C170: 3
C171: 2354

Sheet 2.5 (669)
A1: 2.5. Программа ПК, которая формирует у учителя (педагога) навыки работы в полилингвальной образовательной среде.
A2: № | B2: Предмет | C2: Всего | D2: Высшая квалификационная категория | E2: I квалификационная категория | F2: II квалификационная категория | G2: Без категории | H2: N
A3: 1 | B3: Директор (108 час.) | C3: =SUM(D3:H3) -> 4 | D3: 1 | E3: 2 | H3: 1
A4: 2 | B4: Заместитель директора (108 час.) | C4: 8 | D4: 3 | E4: 3 | G4: 1 | H4: 1
A5: 3 | B5: Заместитель | C5: 2 | D5: 1 | H5: 1
A6: 4 | B6: Заведующий | C6: 0
A7: 5 | B7: Заведующий отделением | C7: 0
A8: 6 | B8: Заведующий филиалом | C8: 0
A9: 7 | B9: Педагог-библиотекарь (64 час.) | C9: 2 | G9: 1 | H9: 1
A10: 8 | B10: Педагог-организатор (64 час.) | C10: 1 | H10: 1
A11: 9 | B11: Педагог-психолог (64 час.) | C11: 0
A12: 10 | B12: Педагог доп. образования | C12: 0
A13: 11 | B13: Старший педагог дополнительного образования | C13: 0
A14: 12 | B14: Социальный педагог (64 час.) | C14: 0
A15: 13 | B15: Воспитатель | C15: 5 | E15: 3 | G15: 1 | H15: 1
A16: 14 | B16: Старший воспитатель | C16: 0
A17: 15 | B17: Специалист (64 час.) | C17: 0
A18: 16 | B18: Сотрудник | C18: 0
A19: 17 | B19: Мастер производственного обучения | C19: 0
A20: 18 | B20: Методист | C20: 0
A21: 19 | B21: Преподаватель | C21: 0
A22: 20 | B22: Тьютор | C22: 0
A23: 21 | B23: Учитель-дефектолог (96 час.) | C23: 0
A24: 22 | B24: Учитель-дефектолог (олигофренопедагог) | C24: 0
A25: 23 | B25: Учитель-дефектолог (сурдопедагог) | C25: 0
A26: 24 | B26: Учитель-дефектолог (тифлопедагог) | C26: 0
A27: 25 | B27: Учитель-логопед (64 час.) | C27: 0
A28: 26 | B28: Учитель (предмет не указан) | C28: 42 | D28: 6 | E28: 9 | F28: 1 | G28: 12 | H28: 14
A29: 27 | B29: Начальные классы (64 час.) | C29: 11 | D29: 3 | E29: 6 | F29: 1 | H29: 1
A30: 28 | B30: Рус.яз. и лит-ра (96 час.) | C30: 13 | D30: 2 | E30: 7 | F30: 1 | G30: 3
A31: 29 | B31: Тат.яз и лит (96 час.) | C31: 48 | D31: 13 | E31: 26 | F31: 1 | G31: 3 | H31: 5
A32: 30 | B32: Марийский язык 196 час.) | C32: 0
A33: 31 | B33: Чувашский язык (96 час.) | C33: 0
A34: 32 | B34: Удм. язык (96 час.) | C34: 0
A35: =A34+1 -> 33 | B35: Иностранный язык | C35: 39 | D35: 6 | E35: 22 | G35: 11
A36: =A35+1 -> 34 | B36: Анг.яз. (96 час.) | C36: 0
A37: 35 | B37: Франц.яз. (96 час.) | C37: 0
A38: 36 | B38: Немец.яз. (96 час.) | C38: 0
A39: 37 | B39: Математика (96 час.) | C39: 4 | D39: 2 | E39: 1 | H39: 1
A40: 38 | B40: Информатика и ИКТ (96 час.) | C40: 1 | H40: 1
A41: 39 | B41: История и обществознание (96 час.) | C41: 2 | D41: 1 | E41: 1
A42: 40 | B42: География (96 час.) | C42: 2 | D42: 1 | E42: 1
A43: 41 | B43: Физика (96 час.) | C43: 0
A44: 42 | B44: Химия (96 час.) | C44: 3 | D44: 1 | E44: 2
A45: 43 | B45: Биология (96 час.) | C45: 1 | D45: 1
A46: 44 | B46: Искусство | C46: 1 | E46: 1
A47: 45 | B47: ИЗО (96 час.) | C47: 0
A48: 46 | B48: Музыка (96 час.) | C48: 0
A49: 47 | B49: Технология (96 час.) | C49: 0
A50: 48 | B50: ОБЖ (96 час.) | C50: 0
A51: 49 | B51: Преподаватель-организатор основ безопасности жизнедеятельности | C51: 0
A52: 50 | B52: Физ-ра (96 час.) | C52: 2 | D52: 2
A53: 51 | B53: Инструктор по физической культуре | C53: 0
A54: 52 | B54: Тренер-преподаватель | C54: 0
A55: 53 | B55: ОРКСЭ (96 час.) | C55: 0
A56: 54 | B56: Классный час | C56: 0
A57: 55 | B57: Музыкальный руководитель | C57: 0
A58: 56 | B58: N | C58: 24 | D58: 7 | E58: 17
C59: =SUM(C3:C58) -> 215
A60: ДОО
A61: № | B61: Предмет | C61: Всего | D61: Высшая квалификационная категория | E61: I квалификационная категория | F61: II квалификационная категория | G61: Без категории | H61: N
A62: 1 | B62: Заведующий (72 час.) | C62: =SUM(D62:H62) -> 25 | D62: 6 | E62: 10 | G62: 5 | H62: 4
A63: 2 | B63: Директор | C63: =SUM(D63:H63) -> 0
A64: 3 | B64: Заместитель | C64: 0
A65: 4 | B65: Заместитель директора | C65: 0
A66: 5 | B66: Заместитель заведующего | C66: 0
A67: 6 | B67: Воспитатель (64 час.) | C67: 351 | D67: 53 | E67: 197 | F67: 1 | G67: 60 | H67: 40
A68: 7 | B68: Дошкольник | C68: 0
A69: 8 | B69: Инструктор по физ.культуре (64 час.) | C69: 4 | D69: 1 | E69: 2 | G69: 1
A70: 9 | B70: Тренер-преподаватель | C70: 0
A71: 10 | B71: Заведующий методическим кабинетом | C71: 0
A72: 11 | B72: Методист (64 час.) | C72: 1 | E72: 1
A73: 12 | B73: Муз. руководитель (64 час.) | C73: 14 | D73: 4 | E73: 6 | G73: 1 | H73: 3
A74: 13 | B74: Педагог дополнительного образования | C74: 0
A75: 14 | B75: Педагог-организатор | C75: 0
A76: 15 | B76: Педагог-психолог (64 час.) | C76: 1 | E76: 1
A77: 16 | B77: Преподаватель | C77: 0
A78: 17 | B78: Специалист | C78: 2 | E78: 1 | G78: 1
A79: 18 | B79: Старший специалист | C79: 0
A80: 19 | B80: Старший воспитатель (64 час.) | C80: 8 | D80: 1 | E80: 6 | G80: 1
A81: 20 | B81: Учитель | C81: 1 | E81: 1
A82: 21 | B82: Учитель-дефектолог | C82: 0
A83: 22 | B83: Учитель-дефектолог (олигофренопедагог) | C83: 0
A84: 23 | B84: Учитель-дефектолог (тифлопедагог) | C84: 0
A85: 24 | B85: Учитель-логопед (64 час.) | C85: =SUM(D85:H85) -> 2 | E85: 2
A86: 25 | B86: N | C86: =SUM(D86:H86) -> 2 | G86: 1 | H86: 1
C87: =SUM(C62:C86) -> 411
A88: ДОД
A89: № | B89: Предмет | C89: Всего | D89: Высшая квалификационная категория | E89: I квалификационная категория | F89: II квалификационная категория | G89: Без категории | H89: N
A90: 1 | B90: Директор (108 час.) | C90: =SUM(D90:H90) -> 1 | G90: 1
A91: 2 | B91: Заместитель (64 час.) | C91: 0
A92: 3 | B92: Заместитель директора | C92: 0
A93: 4 | B93: Заведующий (64 час.) | C93: 0
A94: 5 | B94: Заведующий отделением | C94: 0
A95: 6 | B95: Заведующий структурного подразделения | C95: 0
A96: 7 | B96: Заведующий методическим кабинетом | C96: 0
A97: 8 | B97: Концертмейстер (64 час.) | C97: 0
A98: 9 | B98: Методист (64 час.) | C98: 0
A99: 10 | B99: Педагог доп.образования (64 час.) | C99: 24 | E99: 3 | G99: 8 | H99: 13
A100: 11 | B100: Педагог-организатор (64 час.) | C100: 0
A101: 12 | B101: Педагог-психолог (64 час.) | C101: 0
A102: 13 | B102: Преподаватель (64 час.) | C102: 0
A103: 14 | B103: Преподаватель ДМШ (64 час.) | C103: 1 | E103: 1
A104: 15 | B104: Преподаватель ДХШ (64 час.) | C104: 0
A105: 16 | B105: Преподаватель ДШИ | C105: 0
A106: 17 | B106: Учитель | C106: 0
A107: 18 | B107: Тренер-преподаватель | C107: 0
A108: 20 | B108: N | C108: 2 | H108: 2
C109: =SUM(C90:C108) -> 28
A110: Районные учреждения образования
A111: № | B111: Предмет | C111: Всего | D111: Высшая квалификационная категория | E111: I квалификационная категория | F111: II квалификационная категория | G111: Без категории | H111: N
A112: 2 | B112: Заместитель | C112: =SUM(D112:H112) -> 0
B113: Заместитель начальника | C113: 0
B114: Начальник | C114: 0
B115: Начальник отдела | C115: 0
A116: 3 | B116: Педагог-психолог | C116: 0
A117: 4 | B117: Методист | C117: 0
A118: 5 | B118: Старший методист | C118: 0
A119: 6 | B119: Специалист | C119: 0
A120: 7 | B120: Ведущий специалист | C120: 0
B121: N | C121: 0
C122: =SUM(C112:C121) -> 0
A123: ПО
A124: № | B124: Предмет | C124: Всего | D124: Высшая квалификационная категория | E124: I квалификационная категория | F124: II квалификационная категория | G124: Без категории | H124: N
A125: 1 | B125: Воспитатель (64 час.) | C125: =SUM(D125:H125) -> 0
A126: 3 | B126: Директор (108 час.) | C126: 0
A127: 4 | B127: Заведующий (96 час.) | C127: 0
B128: Заведующий методическим кабинетом | C128: 0
A129: 6 | B129: Заведующий отделением (64 час.) | C129: 1 | H129: 1
A130: 8 | B130: Заведующий филиалом | C130: 0
A131: 9 | B131: Заместитель | C131: 1 | D131: 1
A132: 10 | B132: Заместитель директора | C132: 0
A133: 11 | B133: Музыкальный руководитель | C133: 0
A134: 12 | B134: Мастер производ.обучения | C134: 0
A135: 13 | B135: Методист | C135: 0
A136: 16 | B136: Педагог доп.образования (64 час.) | C136: 0
A137: 17 | B137: Педагог-библиотекарь (64 час.) | C137: 0
A138: 18 | B138: Педагог-организатор (64 час.) | C138: 0
A139: 19 | B139: Педагог-психолог (64 час.) | C139: 0
A140: 21 | B140: Преподаватель (96 час.) | C140: 13 | D140: 2 | E140: 8 | G140: 3
A141: 23 | B141: Общепроф. дисциплины (96 час.) | C141: 0
B142: Учитель | C142: 0
A143: 24 | B143: Социальный педагог (64 час.) | C143: 0
A144: 25 | B144: Старший мастер | C144: 0
A145: 28 | B145: Руководитель физического воспитания | C145: 0
A146: 30 | B146: N | C146: 0
C147: =SUM(C125:C146) -> 15
A148: Прочие (детские дома, центры психолого-медико-социального сопровождения, межшкольный учебный комбинат, вечерняя школа закрытого типа)
A149: № | B149: Предмет | C149: Всего | D149: Высшая квалификационная категория | E149: I квалификационная категория | F149: II квалификационная категория | G149: Без категории | H149: N
A150: 1 | B150: Воспитатель (64 час.) | C150: =SUM(D150:H150) -> 0
A151: 2 | B151: Директор (108 час.) | C151: 0
A152: 3 | B152: Замиститель | C152: 0
A153: 4 | B153: Инструктор по туду | C153: 0
A154: 5 | B154: Инструктор по физической культуре | C154: 0
A155: 6 | B155: Музыкальный руководитель | C155: 0
A156: 7 | B156: Педагог доп.образования (64 час.) | C156: 0
A157: 8 | B157: Педагог-организатор | C157: 0
A158: 9 | B158: Педагог-библиотекарь (96 час.) | C158: 0
A159: 10 | B159: Педагог-психолог (64 час.) | C159: 0
A160: 11 | B160: Преподаватель | C160: 0
A161: 12 | B161: Социальный педагог (72 час.) | C161: 0
A162: 13 | B162: Специалист | C162: 0
A163: 14 | B163: Учитель | C163: 0
A164: 15 | B164: Учитель-дефектолог (196 час.) | C164: 0
A165: 16 | B165: Учитель-логопед (64 час.) | C165: 0
A166: 17 | B166: N | C166: 0
C167: =SUM(C150:C166) -> 0
C168: 669

Sheet 2.6 (1047)
A1: 2.6. Программа ПК, которая формирует у учителя (педагога) навыки в области цифровых технологий применительно к работе учителя (педагога).
A2: № | B2: Предмет | C2: Всего | D2: Высшая квалификационная категория | E2: I квалификационная категория | F2: II квалификационная категория | G2: Без категории | H2: N
A3: 1 | B3: Директор (108 час.) | C3: =SUM(D3:H3) -> 15 | D3: 3 | E3: 9 | G3: 2 | H3: 1
A4: 2 | B4: Заместитель директора (108 час.) | C4: 27 | D4: 4 | E4: 10 | G4: 4 | H4: 9
A5: 3 | B5: Заместитель | C5: 15 | D5: 1 | E5: 7 | F5: 1 | G5: 3 | H5: 3
A6: 4 | B6: Заведующий | C6: 0
A7: 5 | B7: Заведующий отделением | C7: 0
A8: 6 | B8: Заведующий филиалом | C8: 0
A9: 7 | B9: Педагог-библиотекарь (64 час.) | C9: 19 | E9: 3 | G9: 6 | H9: 10
A10: 8 | B10: Педагог-организатор (64 час.) | C10: 5 | D10: 1 | E10: 2 | G10: 1 | H10: 1
A11: 9 | B11: Педагог-психолог (64 час.) | C11: 1 | D11: 1
A12: 10 | B12: Педагог доп. образования | C12: 4 | D12: 1 | G12: 2 | H12: 1
A13: 11 | B13: Старший педагог дополнительного образования | C13: 0
A14: 12 | B14: Социальный педагог (64 час.) | C14: 0
A15: 13 | B15: Воспитатель | C15: 12 | D15: 1 | E15: 6 | G15: 1 | H15: 4
A16: 14 | B16: Старший воспитатель | C16: 0
A17: 15 | B17: Специалист (64 час.) | C17: 0
A18: 16 | B18: Сотрудник | C18: 0
A19: 17 | B19: Мастер производственного обучения | C19: 0
A20: 18 | B20: Методист | C20: 0
A21: 19 | B21: Преподаватель | C21: 0
A22: 20 | B22: Тьютор | C22: 1 | H22: 1
A23: 21 | B23: Учитель-дефектолог (96 час.) | C23: 0
A24: 22 | B24: Учитель-дефектолог (олигофренопедагог) | C24: 0
A25: 23 | B25: Учитель-дефектолог (сурдопедагог) | C25: 0
A26: 24 | B26: Учитель-дефектолог (тифлопедагог) | C26: 0
A27: 25 | B27: Учитель-логопед (64 час.) | C27: 0
A28: 26 | B28: Учитель (предмет не указан) | C28: 120 | D28: 11 | E28: 54 | G28: 28 | H28: 27
A29: 27 | B29: Начальные классы (64 час.) | C29: 100 | D29: 25 | E29: 66 | G29: 5 | H29: 4
A30: 28 | B30: Рус.яз. и лит-ра (96 час.) | C30: 32 | D30: 10 | E30: 18 | G30: 2 | H30: 2
A31: 29 | B31: Тат.яз и лит (96 час.) | C31: 27 | D31: 8 | E31: 15 | G31: 2 | H31: 2
A32: 30 | B32: Марийский язык 196 час.) | C32: 0
A33: 31 | B33: Чувашский язык (96 час.) | C33: 0
A34: 32 | B34: Удм. язык (96 час.) | C34: 0
A35: =A34+1 -> 33 | B35: Иностранный язык | C35: 49 | D35: 4 | E35: 27 | G35: 4 | H35: 14
A36: =A35+1 -> 34 | B36: Анг.яз. (96 час.) | C36: 0
A37: 35 | B37: Франц.яз. (96 час.) | C37: 0
A38: 36 | B38: Немец.яз. (96 час.) | C38: 0
A39: 37 | B39: Математика (96 час.) | C39: 33 | D39: 4 | E39: 25 | G39: 1 | H39: 3
A40: 38 | B40: Информатика и ИКТ (96 час.) | C40: 18 | D40: 3 | E40: 12 | H40: 3
A41: 39 | B41: История и обществознание (96 час.) | C41: 19 | D41: 3 | E41: 12 | F41: 2 | H41: 2
A42: 40 | B42: География (96 час.) | C42: 15 | D42: 2 | E42: 11 | H42: 2
A43: 41 | B43: Физика (96 час.) | C43: 16 | D43: 5 | E43: 9 | G43: 2
A44: 42 | B44: Химия (96 час.) | C44: 4 | D44: 1 | E44: 2 | H44: 1
A45: 43 | B45: Биология (96 час.) | C45: 13 | D45: 2 | E45: 8 | H45: 3
A46: 44 | B46: Искусство | C46: 9 | D46: 2 | E46: 6 | F46: 1
A47: 45 | B47: ИЗО (96 час.) | C47: 0
A48: 46 | B48: Музыка (96 час.) | C48: 0
A49: 47 | B49: Технология (96 час.) | C49: 21 | D49: 3 | E49: 10 | G49: 3 | H49: 5
A50: 48 | B50: ОБЖ (96 час.) | C50: 0
A51: 49 | B51: Преподаватель-организатор основ безопасности жизнедеятельности | C51: 3 | D51: 2 | E51: 1
A52: 50 | B52: Физ-ра (96 час.) | C52: 23 | D52: 4 | E52: 18 | H52: 1
A53: 51 | B53: Инструктор по физической культуре | C53: 1 | H53: 1
A54: 52 | B54: Тренер-преподаватель | C54: 0
A55: 53 | B55: ОРКСЭ (96 час.) | C55: 0
A56: 54 | B56: Классный час | C56: 0
A57: 55 | B57: Музыкальный руководитель | C57: 1 | G57: 1
A58: 56 | B58: N | C58: 35 | D58: 2 | E58: 23 | G58: 4 | H58: 6
C59: =SUM(C3:C58) -> 638
A60: ДОО
A61: № | B61: Предмет | C61: Всего | D61: Высшая квалификационная категория | E61: I квалификационная категория | F61: II квалификационная категория | G61: Без категории | H61: N
A62: 1 | B62: Заведующий (72 час.) | C62: =SUM(D62:H62) -> 14 | D62: 1 | E62: 6 | G62: 2 | H62: 5
A63: 2 | B63: Директор | C63: =SUM(D63:H63) -> 0
A64: 3 | B64: Заместитель | C64: 1 | E64: 1
A65: 4 | B65: Заместитель директора | C65: 0
A66: 5 | B66: Заместитель заведующего | C66: 0
A67: 6 | B67: Воспитатель (64 час.) | C67: 226 | D67: 25 | E67: 132 | F67: 1 | G67: 38 | H67: 30
A68: 7 | B68: Дошкольник | C68: 0
A69: 8 | B69: Инструктор по физ.культуре (64 час.) | C69: 5 | E69: 5
A70: 9 | B70: Тренер-преподаватель | C70: 0
A71: 10 | B71: Заведующий методическим кабинетом | C71: 1 | E71: 1
A72: 11 | B72: Методист (64 час.) | C72: 0
A73: 12 | B73: Муз. руководитель (64 час.) | C73: 12 | D73: 1 | E73: 6 | G73: 2 | H73: 3
A74: 13 | B74: Педагог дополнительного образования | C74: 0
A75: 14 | B75: Педагог-организатор | C75: 0
A76: 15 | B76: Педагог-психолог (64 час.) | C76: 0
A77: 16 | B77: Преподаватель | C77: 0
A78: 17 | B78: Специалист | C78: 1 | E78: 1
A79: 18 | B79: Старший специалист | C79: 0
A80: 19 | B80: Старший воспитатель (64 час.) | C80: 9 | D80: 5 | E80: 3 | H80: 1
A81: 20 | B81: Учитель | C81: 2 | D81: 1 | E81: 1
A82: 21 | B82: Учитель-дефектолог | C82: 0
A83: 22 | B83: Учитель-дефектолог (олигофренопедагог) | C83: 0
A84: 23 | B84: Учитель-дефектолог (тифлопедагог) | C84: 0
A85: 24 | B85: Учитель-логопед (64 час.) | C85: 9 | E85: 5 | G85: 3 | H85: 1
A86: 25 | B86: N | C86: 2 | E86: 1 | G86: 1
C87: =SUM(C62:C86) -> 282
A88: ДОД
A89: № | B89: Предмет | C89: Всего | D89: Высшая квалификационная категория | E89: I квалификационная категория | F89: II квалификационная категория | G89: Без категории | H89: N
A90: 1 | B90: Директор (108 час.) | C90: =SUM(D90:H90) -> 1 | D90: 1
A91: 2 | B91: Заместитель (64 час.) | C91: =SUM(D91:H91) -> 0
A92: 3 | B92: Заместитель директора | C92: 0
A93: 4 | B93: Заведующий (64 час.) | C93: 1 | H93: 1
A94: 5 | B94: Заведующий отделением | C94: 0
A95: 6 | B95: Заведующий структурного подразделения | C95: 0
A96: 7 | B96: Заведующий методическим кабинетом | C96: 0
A97: 8 | B97: Концертмейстер (64 час.) | C97: 1 | E97: 1
A98: 9 | B98: Методист (64 час.) | C98: 2 | H98: 2
A99: 10 | B99: Педагог доп.образования (64 час.) | C99: 25 | D99: 2 | E99: 10 | G99: 8 | H99: 5
A100: 11 | B100: Педагог-организатор (64 час.) | C100: 6 | E100: 2 | G100: 4
A101: 12 | B101: Педагог-психолог (64 час.) | C101: 0
A102: 13 | B102: Преподаватель (64 час.) | C102: 1 | H102: 1
A103: 14 | B103: Преподаватель ДМШ (64 час.) | C103: 1 | E103: 1
A104: 15 | B104: Преподаватель ДХШ (64 час.) | C104: 0
A105: 16 | B105: Преподаватель ДШИ | C105: 1 | G105: 1
A106: 17 | B106: Учитель | C106: 0
A107: 18 | B107: Тренер-преподаватель | C107: 0
A108: 19 | B108: N | C108: 0
C109: =SUM(C90:C108) -> 39
A110: Районные учреждения образования | D110: ИМЦ, РОО
A111: № | B111: Предмет | C111: Всего | D111: Высшая квалификационная категория | E111: I квалификационная категория | F111: II квалификационная категория | G111: Без категории | H111: N
A112: 2 | B112: Заместитель | C112: =SUM(D112:H112) -> 1 | D112: 1
B113: Заместитель начальника | C113: =SUM(D113:H113) -> 0
B114: Начальник | C114: 0
B115: Начальник отдела | C115: 0
A116: 3 | B116: Педагог-психолог | C116: 0
A117: 4 | B117: Методист | C117: 15 | D117: 7 | E117: 5 | G117: 2 | H117: 1
A118: 5 | B118: Старший методист | C118: 1 | D118: 1
A119: 6 | B119: Специалист | C119: 0
A120: 7 | B120: Ведущий специалист | C120: 0
B121: N | C121: 0
C122: =SUM(C112:C121) -> 17
A123: ПО
A124: № | B124: Предмет | C124: Всего | D124: Высшая квалификационная категория | E124: I квалификационная категория | F124: II квалификационная категория | G124: Без категории | H124: N
A125: 1 | B125: Воспитатель (64 час.) | C125: =SUM(D125:H125) -> 1 | E125: 1
A126: 3 | B126: Директор (108 час.) | C126: =SUM(D126:H126) -> 1 | D126: 1
A127: 4 | B127: Заведующий (96 час.) | C127: 1 | G127: 1
B128: Заведующий методическим кабинетом | C128: 1 | D128: 1
A129: 6 | B129: Заведующий отделением (64 час.) | C129: 2 | D129: 1 | E129: 1
A130: 8 | B130: Начальник отдела | C130: 1 | H130: 1
A131: 9 | B131: Заместитель | C131: 2 | D131: 2
A132: 10 | B132: Заместитель директора | C132: 3 | E132: 1 | G132: 1 | H132: 1
A133: 11 | B133: Музыкальный руководитель | C133: 0
A134: 12 | B134: Мастер производ.обучения | C134: 5 | D134: 1 | G134: 2 | H134: 2
A135: 13 | B135: Методист | C135: 0
A136: 16 | B136: Педагог доп.образования (64 час.) | C136: 0
A137: 17 | B137: Педагог-библиотекарь (64 час.) | C137: 1 | D137: 1
A138: 18 | B138: Педагог-организатор (64 час.) | C138: 0
A139: 19 | B139: Педагог-психолог (64 час.) | C139: 0
A140: 21 | B140: Преподаватель (96 час.) | C140: 50 | D140: 13 | E140: 23 | G140: 5 | H140: 9
A141: 23 | B141: Общепроф. дисциплины (96 час.) | C141: 0
B142: Учитель | C142: 1 | H142: 1
A143: 24 | B143: Социальный педагог (64 час.) | C143: 0
A144: 25 | B144: Старший мастер | C144: 0
A145: 28 | B145: Преподаватель физического воспитания | C145: 0
A146: 30 | B146: N | C146: 2 | H146: 2
C147: =SUM(C125:C146) -> 71
A148: Прочие (детские дома, центры психолого-медико-социального сопровождения, межшкольный учебный комбинат, вечерняя школа закрытого типа)
A149: № | B149: Предмет | C149: Всего | D149: Высшая квалификационная категория | E149: I квалификационная категория | F149: II квалификационная категория | G149: Без категории | H149: N
A150: 1 | B150: Воспитатель (64 час.) | C150: =SUM(D150:H150) -> 0
A151: 2 | B151: Директор (108 час.) | C151: =SUM(D151:H151) -> 0
A152: 3 | B152: Замиститель | C152: 0
A153: 4 | B153: Инструктор по туду | C153: 0
A154: 5 | B154: Инструктор по физической культуре | C154: 0
A155: 6 | B155: Музыкальный руководитель | C155: 0
A156: 7 | B156: Педагог доп.образования (64 час.) | C156: 0
A157: 8 | B157: Педагог-организатор | C157: 0
A158: 9 | B158: Педагог-библиотекарь (96 час.) | C158: 0
A159: 10 | B159: Педагог-психолог (64 час.) | C159: 0
A160: 11 | B160: Преподаватель | C160: 0
A161: 12 | B161: Социальный педагог (72 час.) | C161: 0
A162: 13 | B162: Специалист | C162: 0
A163: 14 | B163: Учитель | C163: 0
A164: 15 | B164: Учитель-дефектолог (196 час.) | C164: 0
A165: 16 | B165: Учитель-логопед (64 час.) | C165: 0
A166: 17 | B166: N | C166: 0
C167: =SUM(C150:C166) -> 0
C168: 1047

Sheet 2.7 (1504)
A1: 2.7. Программа ПК, которая формирует у учителя (педагога) навыки обучения детей с ограниченными возможностями здоровья (ОВЗ)
A2: № | B2: Предмет | C2: Всего | D2: Высшая квалификационная категория | E2: I квалификационная категория | F2: II квалификационная категория | G2: Без категории | H2: N
A3: 1 | B3: Директор (108 час.) | C3: =SUM(D3:H3) -> 13 | D3: 1 | E3: 6 | G3: 3 | H3: 3
A4: 2 | B4: Заместитель директора (108 час.) | C4: 18 | D4: 2 | E4: 6 | G4: 5 | H4: 5
A5: 3 | B5: Заместитель | C5: 13 | D5: 1 | E5: 9 | H5: 3
A6: 4 | B6: Заведующий | C6: 0
A7: 5 | B7: Заведующий отделением | C7: 0
A8: 6 | B8: Заведующий филиалом | C8: 0
A9: 7 | B9: Педагог-библиотекарь (64 час.) | C9: 5 | E9: 2 | G9: 1 | H9: 2
A10: 8 | B10: Педагог-организатор (64 час.) | C10: 6 | E10: 3 | G10: 2 | H10: 1
A11: 9 | B11: Педагог-психолог (64 час.) | C11: 4 | D11: 2 | E11: 1 | G11: 1
A12: 10 | B12: Педагог доп. образования | C12: 5 | D12: 1 | E12: 3 | G12: 1
A13: 11 | B13: Старший педагог дополнительного образования | C13: 0
A14: 12 | B14: Социальный педагог (64 час.) | C14: 2 | E14: 1 | H14: 1
A15: 13 | B15: Воспитатель | C15: 85 | D15: 3 | E15: 53 | G15: 15 | H15: 14
A16: 14 | B16: Старший воспитатель | C16: 2 | D16: 1 | E16: 1
A17: 15 | B17: Специалист (64 час.) | C17: 1 | D17: 1
A18: 16 | B18: Сотрудник | C18: 0
A19: 17 | B19: Мастер производственного обучения | C19: 1 | E19: 1
A20: 18 | B20: Методист | C20: 0
A21: 19 | B21: Преподаватель | C21: 0
A22: 20 | B22: Тьютор | C22: 0
A23: 21 | B23: Учитель-дефектолог (96 час.) | C23: 120 | D23: 29 | E23: 70 | G23: 11 | H23: 10
A24: 22 | B24: Учитель-дефектолог (олигофренопедагог) | C24: 20 | D24: 1 | E24: 5 | G24: 8 | H24: 6
A25: 23 | B25: Учитель-дефектолог (сурдопедагог) | C25: 7 | D25: 1 | E25: 3 | G25: 1 | H25: 2
A26: 24 | B26: Учитель-дефектолог (тифлопедагог) | C26: 1 | E26: 1
A27: 25 | B27: Учитель-логопед (64 час.) | C27: 10 | D27: 4 | E27: 4 | G27: 2
A28: 26 | B28: Учитель (предмет не указан) | C28: 129 | D28: 7 | E28: 47 | F28: 4 | G28: 31 | H28: 40
A29: 27 | B29: Начальные классы (64 час.) | C29: 142 | D29: 38 | E29: 87 | G29: 4 | H29: 13
A30: 28 | B30: Рус.яз. и лит-ра (96 час.) | C30: 21 | D30: 4 | E30: 12 | F30: 2 | G30: 1 | H30: 2
A31: 29 | B31: Тат.яз и лит (96 час.) | C31: 22 | D31: 6 | E31: 12 | F31: 1 | G31: 1 | H31: 2
A32: 30 | B32: Марийский язык 196 час.) | C32: 0
A33: 31 | B33: Чувашский язык (96 час.) | C33: 0
A34: 32 | B34: Удм. язык (96 час.) | C34: 0
A35: =A34+1 -> 33 | B35: Иностранный язык | C35: 15 | D35: 1 | E35: 7 | G35: 1 | H35: 6
A36: =A35+1 -> 34 | B36: Анг.яз. (96 час.) | C36: 0
A37: 35 | B37: Франц.яз. (96 час.) | C37: 0
A38: 36 | B38: Немец.яз. (96 час.) | C38: 0
A39: 37 | B39: Математика (96 час.) | C39: 15 | D39: 3 | E39: 12
A40: 38 | B40: Информатика и ИКТ (96 час.) | C40: 2 | D40: 1 | H40: 1
A41: 39 | B41: История и обществознание (96 час.) | C41: 15 | D41: 4 | E41: 7 | G41: 1 | H41: 3
A42: 40 | B42: География (96 час.) | C42: 6 | D42: 2 | E42: 3 | G42: 1
A43: 41 | B43: Физика (96 час.) | C43: 4 | D43: 1 | E43: 3
A44: 42 | B44: Химия (96 час.) | C44: 7 | D44: 2 | E44: 4 | G44: 1
A45: 43 | B45: Биология (96 час.) | C45: 14 | D45: 2 | E45: 10 | G45: 2
A46: 44 | B46: Искусство | C46: 5 | D46: 1 | E46: 3 | F46: 1
A47: 45 | B47: ИЗО (96 час.) | C47: 0
A48: 46 | B48: Музыка (96 час.) | C48: 0
A49: 47 | B49: Технология (96 час.) | C49: 14 | D49: 4 | E49: 6 | G49: 1 | H49: 3
A50: 48 | B50: ОБЖ (96 час.) | C50: 1 | E50: 1
A51: 49 | B51: Преподаватель-организатор основ безопасности жизнедеятельности | C51: 1 | D51: 1
A52: 50 | B52: Физ-ра (96 час.) | C52: 23 | D52: 7 | E52: 13 | G52: 1 | H52: 2
A53: 51 | B53: Инструктор по физической культуре | C53: 1 | H53: 1
A54: 52 | B54: Тренер-преподаватель | C54: 0
A55: 53 | B55: ОРКСЭ (96 час.) | C55: 1 | G55: 1
A56: 54 | B56: Классный час | C56: 0
A57: 55 | B57: Музыкальный руководитель | C57: =SUM(D57:H57) -> 0
A58: 56 | B58: Коррекционные технологии | C58: 10 | E58: 8 | G58: 1 | H58: 1
A59: 57 | B59: N | C59: 30 | D59: 10 | E59: 14 | G59: 3 | H59: 3
C60: =SUM(C3:C59) -> 791
A61: ДОО
A62: № | B62: Предмет | C62: Всего | D62: Высшая квалификационная категория | E62: I квалификационная категория | F62: II квалификационная категория | G62: Без категории | H62: N
A63: 1 | B63: Заведующий (72 час.) | C63: =SUM(D63:H63) -> 33 | D63: 6 | E63: 8 | F63: 1 | G63: 13 | H63: 5
A64: 2 | B64: Директор | C64: =SUM(D64:H64) -> 0
A65: 3 | B65: Заместитель | C65: 0
A66: 4 | B66: Заместитель директора | C66: 0
A67: 5 | B67: Заместитель заведующего | C67: 0
A68: 6 | B68: Воспитатель (64 час.) | C68: 351 | D68: 52 | E68: 212 | F68: 1 | G68: 48 | H68: 38
A69: 7 | B69: Дошкольник | C69: 0
A70: 8 | B70: Инструктор по физ.культуре (64 час.) | C70: 28 | D70: 9 | E70: 13 | G70: 3 | H70: 3
A71: 9 | B71: Тренер-преподаватель | C71: 0
A72: 10 | B72: Заведующий методическим кабинетом | C72: 0
A73: 11 | B73: Методист (64 час.) | C73: 0
A74: 12 | B74: Муз. руководитель (64 час.) | C74: 16 | D74: 5 | E74: 7 | G74: 2 | H74: 2
A75: 13 | B75: Педагог дополнительного образования | C75: 0
A76: 14 | B76: Педагог-организатор | C76: 0
A77: 15 | B77: Педагог-психолог (64 час.) | C77: 19 | D77: 2 | E77: 7 | G77: 7 | H77: 3
A78: 16 | B78: Преподаватель | C78: 2 | D78: 1 | E78: 1
A79: 17 | B79: Специалист | C79: 2 | D79: 1 | G79: 1
A80: 18 | B80: Старший специалист | C80: 0
A81: 19 | B81: Старший воспитатель (64 час.) | C81: 7 | D81: 1 | E81: 6
A82: 20 | B82: Учитель | C82: 1 | D82: 1
A83: 21 | B83: Учитель-дефектолог | C83: 19 | D83: 5 | E83: 8 | G83: 5 | H83: 1
A84: 22 | B84: Учитель-дефектолог (олигофренопедагог) | C84: 2 | E84: 1 | G84: 1
A85: 23 | B85: Учитель-дефектолог (тифлопедагог) | C85: 4 | D85: 2 | E85: 2
A86: 24 | B86: Учитель-логопед (64 час.) | C86: 133 | D86: 36 | E86: 77 | G86: 16 | H86: 4
A87: 25 | B87: N | C87: 1 | E87: 1
C88: =SUM(C63:C87) -> 618
A89: ДОД
A90: № | B90: Предмет | C90: Всего | D90: Высшая квалификационная категория | E90: I квалификационная категория | F90: II квалификационная категория | G90: Без категории | H90: N
A91: 1 | B91: Директор (108 час.) | C91: =SUM(D91:H91) -> 1 | E91: 1
A92: 2 | B92: Заместитель (64 час.) | C92: =SUM(D92:H92) -> 3 | D92: 2 | E92: 1
A93: 3 | B93: Заместитель директора | C93: 0
A94: 4 | B94: Заведующий (64 час.) | C94: 2 | E94: 1 | H94: 1
A95: 5 | B95: Заведующий отделением | C95: 1 | H95: 1
A96: 6 | B96: Заведующий структурного подразделения | C96: 0
A97: 7 | B97: Заведующий методическим кабинетом | C97: 0
A98: 8 | B98: Концертмейстер (64 час.) | C98: 1 | D98: 1
A99: 9 | B99: Методист (64 час.) | C99: 2 | G99: 1 | H99: 1
A100: 10 | B100: Педагог доп.образования (64 час.) | C100: 33 | D100: 2 | E100: 14 | F100: 1 | G100: 4 | H100: 12
A101: 11 | B101: Педагог-организатор (64 час.) | C101: 0
A102: 12 | B102: Педагог-психолог (64 час.) | C102: 1 | G102: 1
A103: 13 | B103: Преподаватель (64 час.) | C103: 1 | D103: 1
A104: 14 | B104: Преподаватель ДМШ (64 час.) | C104: 2 | E104: 1 | G104: 1
A105: 15 | B105: Преподаватель ДХШ (64 час.) | C105: 0
A106: 16 | B106: Преподаватель ДШИ | C106: 3 | D106: 2 | E106: 1
A107: 17 | B107: Учитель | C107: 0
A108: 18 | B108: Тренер-преподаватель | C108: 0
A109: 19 | B109: N | C109: 0
C110: =SUM(C91:C109) -> 50
A111: Районные учреждения образования
A112: № | B112: Предмет | C112: Всего | D112: Высшая квалификационная категория | E112: I квалификационная категория | F112: II квалификационная категория | G112: Без категории | H112: N
A113: 2 | B113: Заместитель | C113: =SUM(D113:H113) -> 0
B114: Заместитель начальника | C114: =SUM(D114:H114) -> 1 | E114: 1
B115: Начальник | C115: 0
B116: Начальник отдела | C116: 0
A117: 3 | B117: Педагог-психолог | C117: 0
A118: 4 | B118: Методист | C118: 3 | E118: 2 | G118: 1
A119: 5 | B119: Старший методист | C119: 0
A120: 6 | B120: Специалист | C120: 0
A121: 7 | B121: Ведущий специалист | C121: 0
B122: N | C122: 1 | G122: 1
C123: =SUM(C113:C122) -> 5
A124: ПО
A125: № | B125: Предмет | C125: Всего | D125: Высшая квалификационная категория | E125: I квалификационная категория | F125: II квалификационная категория | G125: Без категории | H125: N
A126: 1 | B126: Воспитатель (64 час.) | C126: =SUM(D126:H126) -> 0
A127: 3 | B127: Директор (108 час.) | C127: =SUM(D127:H127) -> 1 | G127: 1
A128: 4 | B128: Заведующий (96 час.) | C128: 0
B129: Заведующий методическим кабинетом | C129: 0
A130: 6 | B130: Заведующий отделением (64 час.) | C130: 0
A131: 8 | B131: Заведующий филиалом | C131: 0
A132: 9 | B132: Заместитель | C132: 0
A133: 10 | B133: Заместитель директора | C133: 1 | E133: 1
A134: 11 | B134: Музыкальный руководитель | C134: 0
A135: 12 | B135: Мастер производ.обучения | C135: 5 | D135: 1 | E135: 2 | G135: 2
A136: 13 | B136: Методист | C136: 0
A137: 16 | B137: Педагог доп.образования (64 час.) | C137: 0
A138: 17 | B138: Педагог-библиотекарь (64 час.) | C138: 0
A139: 18 | B139: Педагог-организатор (64 час.) | C139: 0
A140: 19 | B140: Педагог-психолог (64 час.) | C140: 0
A141: 21 | B141: Преподаватель (96 час.) | C141: 13 | D141: 6 | E141: 4 | G141: 1 | H141: 2
A142: 23 | B142: Общепроф. дисциплины (96 час.) | C142: 0
B143: Учитель | C143: 0
A144: 24 | B144: Социальный педагог (64 час.) | C144: 1 | E144: 1
A145: 25 | B145: Старший мастер | C145: 0
A146: 28 | B146: Руководитель физического воспитания | C146: 0
A147: 30 | B147: N | C147: 2 | D147: 1 | E147: 1
C148: =SUM(C126:C147) -> 23
A149: Прочие (детские дома, центры психолого-медико-социального сопровождения, межшкольный учебный комбинат, вечерняя школа закрытого типа)
A150: № | B150: Предмет | C150: Всего | D150: Высшая квалификационная категория | E150: I квалификационная категория | F150: II квалификационная категория | G150: Без категории | H150: N
A151: 1 | B151: Воспитатель (64 час.) | C151: =SUM(D151:H151) -> 10 | E151: 1 | F151: 1 | G151: 4 | H151: 4
A152: 2 | B152: Директор (108 час.) | C152: =SUM(D152:H152) -> 0
A153: 3 | B153: Замиститель | C153: 0
A154: 4 | B154: Инструктор по туду | C154: 0
A155: 5 | B155: Инструктор по физической культуре | C155: 1 | H155: 1
A156: 6 | B156: Музыкальный руководитель | C156: 1 | H156: 1
A157: 7 | B157: Педагог доп.образования (64 час.) | C157: 0
A158: 8 | B158: Педагог-организатор | C158: 0
A159: 9 | B159: Педагог-библиотекарь (96 час.) | C159: 0
A160: 10 | B160: Педагог-психолог (64 час.) | C160: 3 | E160: 1 | G160: 2
A161: 11 | B161: Преподаватель | C161: 0
A162: 12 | B162: Социальный педагог (72 час.) | C162: 0
A163: 13 | B163: Специалист | C163: 0
A164: 14 | B164: Учитель | C164: 0
A165: 15 | B165: Учитель-дефектолог (196 час.) | C165: 0
A166: 16 | B166: Учитель-логопед (64 час.) | C166: 2 | E166: 2
A167: 17 | B167: N | C167: 0
C168: =SUM(C151:C167) -> 17
C169: 1504

Sheet 2.8 (577)
A1: 2.8. Программа ПК, которая развивает у учителя (педагога) навыки оценивания обучающихся
A2: № | B2: Предмет | C2: Всего | D2: Высшая квалификационная категория | E2: I квалификационная категория | F2: II квалификационная категория | G2: Без категории | H2: N
A3: 1 | B3: Директор (108 час.) | C3: =SUM(D3:H3) -> 9 | D3: 2 | E3: 7
A4: 2 | B4: Заместитель директора (108 час.) | C4: 19 | D4: 3 | E4: 8 | G4: 1 | H4: 7
A5: 3 | B5: Заместитель | C5: 10 | D5: 3 | E5: 5 | G5: 1 | H5: 1
A6: 4 | B6: Заведующий | C6: 0
A7: 5 | B7: Заведующий отделением | C7: 0
A8: 6 | B8: Заведующий филиалом | C8: 0
A9: 7 | B9: Педагог-библиотекарь (64 час.) | C9: 0
A10: 8 | B10: Педагог-организатор (64 час.) | C10: 1 | E10: 1
A11: 9 | B11: Педагог-психолог (64 час.) | C11: 1 | G11: 1
A12: 10 | B12: Педагог доп. образования | C12: 0
A13: 11 | B13: Старший педагог дополнительного образования | C13: 1 | H13: 1
A14: 12 | B14: Социальный педагог (64 час.) | C14: 0
A15: 13 | B15: Воспитатель | C15: 5 | E15: 3 | F15: 1 | H15: 1
A16: 14 | B16: Старший воспитатель | C16: 0
A17: 15 | B17: Специалист (64 час.) | C17: 0
A18: 16 | B18: Сотрудник | C18: 0
A19: 17 | B19: Мастер производственного обучения | C19: 0
A20: 18 | B20: Методист | C20: 0
A21: 19 | B21: Преподаватель | C21: 0
A22: 20 | B22: Тьютор | C22: 0
A23: 21 | B23: Учитель-дефектолог (96 час.) | C23: 1 | G23: 1
A24: 22 | B24: Учитель-дефектолог (олигофренопедагог) | C24: 0
A25: 23 | B25: Учитель-дефектолог (сурдопедагог) | C25: 0
A26: 24 | B26: Учитель-дефектолог (тифлопедагог) | C26: 0
A27: 25 | B27: Учитель-логопед (64 час.) | C27: 0
A28: 26 | B28: Учитель (предмет не указан) | C28: 76 | D28: 8 | E28: 25 | G28: 19 | H28: 24
A29: 27 | B29: Начальные классы (64 час.) | C29: 152 | D29: 34 | E29: 99 | G29: 7 | H29: 12
A30: 28 | B30: Рус.яз. и лит-ра (96 час.) | C30: 18 | D30: 4 | E30: 7 | G30: 4 | H30: 3
A31: 29 | B31: Тат.яз и лит (96 час.) | C31: 21 | D31: 3 | E31: 14 | G31: 1 | H31: 3
A32: 30 | B32: Марийский язык 196 час.) | C32: 0
A33: 31 | B33: Чувашский язык (96 час.) | C33: 0
A34: 32 | B34: Удм. язык (96 час.) | C34: 0
A35: =A34+1 -> 33 | B35: Иностранный язык | C35: 22 | E35: 10 | F35: 1 | G35: 7 | H35: 4
A36: =A35+1 -> 34 | B36: Анг.яз. (96 час.) | C36: 0
A37: 35 | B37: Франц.яз. (96 час.) | C37: 0
A38: 36 | B38: Немец.яз. (96 час.) | C38: 0
A39: 37 | B39: Математика (96 час.) | C39: 15 | D39: 2 | E39: 13
A40: 38 | B40: Информатика и ИКТ (96 час.) | C40: 4 | D40: 1 | E40: 1 | F40: 1 | H40: 1
A41: 39 | B41: История и обществознание (96 час.) | C41: 12 | D41: 3 | E41: 6 | G41: 2 | H41: 1
A42: 40 | B42: География (96 час.) | C42: 6 | E42: 6
A43: 41 | B43: Физика (96 час.) | C43: 7 | D43: 1 | E43: 2 | G43: 1 | H43: 3
A44: 42 | B44: Химия (96 час.) | C44: 2 | D44: 1 | E44: 1
A45: 43 | B45: Биология (96 час.) | C45: 5 | D45: 1 | E45: 4
A46: 44 | B46: Искусство | C46: 2 | E46: 2
A47: 45 | B47: ИЗО (96 час.) | C47: 0
A48: 46 | B48: Музыка (96 час.) | C48: 0
A49: 47 | B49: Технология (96 час.) | C49: 3 | E49: 3
A50: 48 | B50: ОБЖ (96 час.) | C50: 5 | D50: 1 | E50: 4
A51: 49 | B51: Преподаватель-организатор основ безопасности жизнедеятельности | C51: 1 | H51: 1
A52: 50 | B52: Физ-ра (96 час.) | C52: 20 | D52: 1 | E52: 17 | G52: 1 | H52: 1
A53: 51 | B53: Руководитель физического воспитания | C53: 1 | E53: 1
A54: 52 | B54: Тренер-преподаватель | C54: 0
A55: 53 | B55: ОРКСЭ (96 час.) | C55: 0
A56: 54 | B56: Классный час | C56: 1 | H56: 1
A57: 55 | B57: Музыкальный руководитель | C57: 0
A58: 56 | B58: N | C58: 34 | D58: 4 | E58: 22 | G58: 5 | H58: 3
C59: =SUM(C3:C58) -> 454
A60: ДОО
A61: № | B61: Предмет | C61: Всего | D61: Высшая квалификационная категория | E61: I квалификационная категория | F61: II квалификационная категория | G61: Без категории | H61: N
A62: 1 | B62: Заведующий (72 час.) | C62: =SUM(D62:H62) -> 4 | E62: 1 | G62: 1 | H62: 2
A63: 2 | B63: Директор | C63: =SUM(D63:H63) -> 0
A64: 3 | B64: Заместитель | C64: 0
A65: 4 | B65: Заместитель директора | C65: 0
A66: 5 | B66: Заместитель заведующего | C66: 0
A67: 6 | B67: Воспитатель (64 час.) | C67: 32 | D67: 5 | E67: 18 | G67: 5 | H67: 4
A68: 7 | B68: Дошкольник | C68: 0
A69: 8 | B69: Инструктор по физ.культуре (64 час.) | C69: 1 | H69: 1
A70: 9 | B70: Тренер-преподаватель | C70: 0
A71: 10 | B71: Заведующий методическим кабинетом | C71: 0
A72: 11 | B72: Методист (64 час.) | C72: 0
A73: 12 | B73: Муз. руководитель (64 час.) | C73: 3 | D73: 1 | E73: 1 | H73: 1
A74: 13 | B74: Педагог дополнительного образования | C74: 0
A75: 14 | B75: Педагог-организатор | C75: 0
A76: 15 | B76: Педагог-психолог (64 час.) | C76: 2 | G76: 1 | H76: 1
A77: 16 | B77: Преподаватель | C77: 0
A78: 17 | B78: Специалист | C78: 1 | H78: 1
A79: 18 | B79: Старший специалист | C79: 0
A80: 19 | B80: Старший воспитатель (64 час.) | C80: 1 | D80: 1
A81: 20 | B81: Учитель | C81: 0
A82: 21 | B82: Учитель-дефектолог | C82: 0
A83: 22 | B83: Учитель-дефектолог (олигофренопедагог) | C83: 0
A84: 23 | B84: Учитель-дефектолог (тифлопедагог) | C84: 0
A85: 24 | B85: Учитель-логопед (64 час.) | C85: 1 | G85: 1
A86: 25 | B86: N | C86: 1 | E86: 1
C87: =SUM(C62:C86) -> 46
A88: ДОД
A89: № | B89: Предмет | C89: Всего | D89: Высшая квалификационная категория | E89: I квалификационная категория | F89: II квалификационная категория | G89: Без категории | H89: N
A90: 1 | B90: Директор (108 час.) | C90: =SUM(D90:H90) -> 0
A91: 2 | B91: Заместитель (64 час.) | C91: =SUM(D91:H91) -> 0
A92: 3 | B92: Заместитель директора | C92: 0
A93: 4 | B93: Заведующий (64 час.) | C93: 0
A94: 5 | B94: Заведующий отделением | C94: 0
A95: 6 | B95: Заведующий структурного подразделения | C95: 0
A96: 7 | B96: Заведующий методическим кабинетом | C96: 0
A97: 8 | B97: Концертмейстер (64 час.) | C97: 3 | E97: 1 | H97: 2
A98: 9 | B98: Методист (64 час.) | C98: 0
A99: 10 | B99: Педагог доп.образования (64 час.) | C99: 18 | D99: 4 | E99: 7 | F99: 1 | G99: 2 | H99: 4
A100: 11 | B100: Педагог-организатор (64 час.) | C100: 0
A101: 12 | B101: Педагог-психолог (64 час.) | C101: 0
A102: 13 | B102: Преподаватель (64 час.) | C102: 9 | D102: 3 | E102: 5 | H102: 1
A103: 14 | B103: Преподаватель ДМШ (64 час.) | C103: 0
A104: 15 | B104: Преподаватель ДХШ (64 час.) | C104: 0
A105: 16 | B105: Преподаватель ДШИ | C105: 10 | D105: 2 | E105: 8
A106: 17 | B106: Учитель | C106: 0
A107: 18 | B107: Тренер-преподаватель | C107: 0
A108: 19 | B108: N | C108: 0
C109: =SUM(C90:C108) -> 40
A110: Районные учреждения образования | D110: ИМЦ, РОО
A111: № | B111: Предмет | C111: Всего | D111: Высшая квалификационная категория | E111: I квалификационная категория | F111: II квалификационная категория | G111: Без категории | H111: N
A112: 2 | B112: Заместитель | C112: =SUM(D112:H112) -> 0
B113: Заместитель начальника | C113: =SUM(D113:H113) -> 0
B114: Начальник | C114: 0
B115: Начальник отдела | C115: 0
A116: 3 | B116: Педагог-психолог | C116: 0
A117: 4 | B117: Методист | C117: 0
A118: 5 | B118: Старший методист | C118: 0
A119: 6 | B119: Специалист | C119: 0
A120: 7 | B120: Ведущий специалист | C120: 0
B121: N | C121: 0
C122: =SUM(C112:C121) -> 0
A123: ПО
A124: № | B124: Предмет | C124: Всего | D124: Высшая квалификационная категория | E124: I квалификационная категория | F124: II квалификационная категория | G124: Без категории | H124: N
A125: 1 | B125: Воспитатель (64 час.) | C125: =SUM(D125:H125) -> 1 | G125: 1
A126: 3 | B126: Директор (108 час.) | C126: =SUM(D126:H126) -> 0
A127: 4 | B127: Заведующий (96 час.) | C127: 0
B128: Заведующий методическим кабинетом | C128: 0
A129: 6 | B129: Заведующий отделением (64 час.) | C129: 1 | E129: 1
A130: 8 | B130: Заведующий филиалом | C130: 0
A131: 9 | B131: Заместитель | C131: 0
A132: 10 | B132: Заместитель директора | C132: 4 | E132: 1 | G132: 2 | H132: 1
A133: 11 | B133: Музыкальный руководитель | C133: 0
A134: 12 | B134: Мастер производ.обучения | C134: 6 | E134: 3 | F134: 1 | H134: 2
A135: 13 | B135: Методист | C135: 0
A136: 16 | B136: Педагог доп.образования (64 час.) | C136: 0
A137: 17 | B137: Педагог-библиотекарь (64 час.) | C137: 0
A138: 18 | B138: Педагог-организатор (64 час.) | C138: 0
A139: 19 | B139: Педагог-психолог (64 час.) | C139: 0
A140: 21 | B140: Преподаватель (96 час.) | C140: 23 | D140: 5 | E140: 15 | G140: 2 | H140: 1
A141: 23 | B141: Общепроф. дисциплины (96 час.) | C141: 0
B142: Учитель | C142: 0
A143: 24 | B143: Социальный педагог (64 час.) | C143: 0
A144: 25 | B144: Старший мастер | C144: 0
A145: 28 | B145: Преподаватель физического воспитания | C145: 0
A146: 30 | B146: N | C146: 0
C147: =SUM(C125:C146) -> 35
A148: Прочие (детские дома, центры психолого-медико-социального сопровождения, межшкольный учебный комбинат, вечерняя школа закрытого типа)
A149: № | B149: Предмет | C149: Всего | D149: Высшая квалификационная категория | E149: I квалификационная категория | F149: II квалификационная категория | G149: Без категории | H149: N
A150: 1 | B150: Воспитатель (64 час.) | C150: =SUM(D150:H150) -> 1 | E150: 1
A151: 2 | B151: Директор (108 час.) | C151: =SUM(D151:H151) -> 0
A152: 3 | B152: Замиститель | C152: 0
A153: 4 | B153: Инструктор по туду | C153: 0
A154: 5 | B154: Инструктор по физической культуре | C154: 0
A155: 6 | B155: Музыкальный руководитель | C155: 0
A156: 7 | B156: Педагог доп.образования (64 час.) | C156: 0
A157: 8 | B157: Педагог-организатор | C157: 0
A158: 9 | B158: Педагог-библиотекарь (96 час.) | C158: 0
A159: 10 | B159: Педагог-психолог (64 час.) | C159: 1 | D159: 1
A160: 11 | B160: Преподаватель | C160: 0
A161: 12 | B161: Социальный педагог (72 час.) | C161: 0
A162: 13 | B162: Специалист | C162: 0
A163: 14 | B163: Учитель | C163: 0
A164: 15 | B164: Учитель-дефектолог (196 час.) | C164: 0
A165: 16 | B165: Учитель-логопед (64 час.) | C165: 0
A166: 17 | B166: N | C166: 0
C167: =SUM(C150:C166) -> 2
C168: 577

Sheet 2.9 (144)
A1: 2.9. Программа ПК по подготовке тьюторов организаций ДОО, ДОД, СПО в области цифровых технологий.
A2: № | B2: Предмет | C2: Всего | D2: Высшая квалификационная категория | E2: I квалификационная категория | F2: II квалификационная категория | G2: Без категории | H2: N
A3: 1 | B3: Директор (108 час.) | C3: =SUM(D3:H3) -> 1 | E3: 1
A4: 2 | B4: Заместитель директора (108 час.) | C4: 1 | E4: 1
A5: 3 | B5: Заместитель | C5: 1 | H5: 1
A6: 4 | B6: Заведующий | C6: 0
A7: 5 | B7: Заведующий отделением | C7: 0
A8: 6 | B8: Заведующий филиалом | C8: 0
A9: 7 | B9: Педагог-библиотекарь (64 час.) | C9: 1 | H9: 1
A10: 8 | B10: Педагог-организатор (64 час.) | C10: 5 | D10: 2 | E10: 2 | G10: 1
A11: 9 | B11: Педагог-психолог (64 час.) | C11: 0
A12: 10 | B12: Педагог доп. образования | C12: 1 | G12: 1
A13: 11 | B13: Старший педагог дополнительного образования | C13: 0
A14: 12 | B14: Социальный педагог (64 час.) | C14: 0
A15: 13 | B15: Воспитатель | C15: 4 | E15: 1 | H15: 3
A16: 14 | B16: Старший воспитатель | C16: 0
A17: 15 | B17: Специалист (64 час.) | C17: 0
A18: 16 | B18: Сотрудник | C18: 0
A19: 17 | B19: Мастер производственного обучения | C19: 0
A20: 18 | B20: Методист | C20: 0
A21: 19 | B21: Преподаватель | C21: 0
A22: 20 | B22: Тьютор | C22: 1 | G22: 1
A23: 21 | B23: Учитель-дефектолог (96 час.) | C23: 0
A24: 22 | B24: Учитель-дефектолог (олигофренопедагог) | C24: 0
A25: 23 | B25: Учитель-дефектолог (сурдопедагог) | C25: 0
A26: 24 | B26: Учитель-дефектолог (тифлопедагог) | C26: 0
A27: 25 | B27: Учитель-логопед (64 час.) | C27: 0
A28: 26 | B28: Учитель (предмет не указан) | C28: 5 | D28: 2 | H28: 3
A29: 27 | B29: Начальные классы (64 час.) | C29: 4 | D29: 1 | E29: 3
A30: 28 | B30: Рус.яз. и лит-ра (96 час.) | C30: 0
A31: 29 | B31: Тат.яз и лит (96 час.) | C31: 1 | E31: 1
A32: 30 | B32: Марийский язык 196 час.) | C32: 0
A33: 31 | B33: Чувашский язык (96 час.) | C33: 0
A34: 32 | B34: Удм. язык (96 час.) | C34: 0
A35: 33 | B35: Анг.яз. (96 час.) | C35: 0
A36: 34 | B36: Франц.яз. (96 час.) | C36: 0
A37: 35 | B37: Немец.яз. (96 час.) | C37: 0
A38: 36 | B38: Математика (96 час.) | C38: 3 | E38: 1 | G38: 2
A39: 37 | B39: Информатика и ИКТ (96 час.) | C39: 2 | E39: 2
A40: 38 | B40: История и обществознание (96 час.) | C40: 1 | D40: 1
A41: 39 | B41: География (96 час.) | C41: 0
A42: 40 | B42: Физика (96 час.) | C42: 0
A43: 41 | B43: Химия (96 час.) | C43: 0
A44: 42 | B44: Биология (96 час.) | C44: 0
A45: 43 | B45: ИЗО (96 час.) | C45: 0
A46: 44 | B46: Музыка (96 час.) | C46: 0
A47: 45 | B47: Технология (96 час.) | C47: 2 | E47: 2
A48: 46 | B48: ОБЖ (96 час.) | C48: 0
A49: 47 | B49: Преподаватель-организатор основ безопасности жизнедеятельности | C49: 0
A50: 48 | B50: Физ-ра (96 час.) | C50: 1 | D50: 1
A51: 49 | B51: Инструктор по физической культуре | C51: 0
A52: 50 | B52: Тренер-преподаватель | C52: 0
A53: 51 | B53: ОРКСЭ (96 час.) | C53: 0
A54: 52 | B54: Классный час | C54: 0
A55: 53 | B55: Музыкальный руководитель | C55: 1 | G55: 1
A56: 54 | B56: N | C56: 1 | G56: 1
C57: =SUM(C3:C56) -> 36
A58: ДОО
A59: № | B59: Предмет | C59: Всего | D59: Высшая квалификационная категория | E59: I квалификационная категория | F59: II квалификационная категория | G59: Без категории | H59: N
A60: 1 | B60: Заведующий (72 час.) | C60: =SUM(D60:H60) -> 17 | D60: 2 | E60: 6 | G60: 1 | H60: 8
A61: 2 | B61: Директор | C61: =SUM(D61:H61) -> 0
A62: 3 | B62: Заместитель | C62: 1 | E62: 1
A63: 4 | B63: Заместитель директора | C63: 0
A64: 5 | B64: Заместитель заведующего | C64: 0
A65: 6 | B65: Воспитатель (64 час.) | C65: 55 | D65: 11 | E65: 28 | G65: 7 | H65: 9
A66: 7 | B66: Дошкольник | C66: 0
A67: 8 | B67: Инструктор по физ.культуре (64 час.) | C67: 0
A68: 9 | B68: Тренер-преподаватель | C68: 0
A69: 10 | B69: Заведующий методическим кабинетом | C69: 0
A70: 11 | B70: Методист (64 час.) | C70: 0
A71: 12 | B71: Муз. руководитель (64 час.) | C71: 1 | G71: 1
A72: 13 | B72: Педагог дополнительного образования | C72: 0
A73: 14 | B73: Педагог-организатор | C73: 0
A74: 15 | B74: Педагог-психолог (64 час.) | C74: 2 | E74: 2
A75: 16 | B75: Преподаватель | C75: 0
A76: 17 | B76: Специалист | C76: 0
A77: 18 | B77: Старший специалист | C77: 0
A78: 19 | B78: Старший воспитатель (64 час.) | C78: 5 | D78: 2 | E78: 3
A79: 20 | B79: Учитель | C79: 0
A80: 21 | B80: Учитель-дефектолог | C80: 0
A81: 22 | B81: Учитель-дефектолог (олигофренопедагог) | C81: 0
A82: 23 | B82: Учитель-дефектолог (тифлопедагог) | C82: 0
A83: 24 | B83: Учитель-логопед (64 час.) | C83: 4 | E83: 2 | G83: 2
A84: 25 | B84: Тьютор | C84: 1 | H84: 1
A85: 26 | B85: N | C85: 1 | E85: 1
C86: =SUM(C60:C85) -> 87
A87: ДОД
A88: № | B88: Предмет | C88: Всего | D88: Высшая квалификационная категория | E88: I квалификационная категория | F88: II квалификационная категория | G88: Без категории | H88: N
A89: 1 | B89: Директор (108 час.) | C89: =SUM(D89:H89) -> 0
A90: 2 | B90: Заместитель (64 час.) | C90: =SUM(D90:H90) -> 1 | E90: 1
A91: 3 | B91: Заместитель директора | C91: 0
A92: 4 | B92: Заведующий (64 час.) | C92: 0
A93: 5 | B93: Заведующий отделением | C93: 0
A94: 6 | B94: Заведующий структурного подразделения | C94: 0
A95: 7 | B95: Заведующий методическим кабинетом | C95: 0
A96: 8 | B96: Концертмейстер (64 час.) | C96: 1 | H96: 1
A97: 9 | B97: Методист (64 час.) | C97: 4 | D97: 1 | E97: 1 | H97: 2
A98: 10 | B98: Педагог доп.образования (64 час.) | C98: 2 | D98: 1 | E98: 1
A99: 11 | B99: Педагог-организатор (64 час.) | C99: 1 | G99: 1
A100: 12 | B100: Педагог-психолог (64 час.) | C100: 0
A101: 13 | B101: Преподаватель (64 час.) | C101: 0
A102: 14 | B102: Преподаватель ДМШ (64 час.) | C102: 0
A103: 15 | B103: Преподаватель ДХШ (64 час.) | C103: 0
A104: 16 | B104: Преподаватель ДШИ | C104: 0
A105: 17 | B105: Учитель | C105: 0
A106: 18 | B106: Тренер-преподаватель | C106: 0
A107: 19 | B107: N | C107: 0
C108: =SUM(C89:C107) -> 9
A109: Районные учреждения образования | D109: ИМЦ, РОО
A110: № | B110: Предмет | C110: Всего | D110: Высшая квалификационная категория | E110: I квалификационная категория | F110: II квалификационная категория | G110: Без категории | H110: N
A111: 2 | B111: Заместитель | C111: =SUM(D111:H111) -> 0
B112: Заместитель начальника | C112: =SUM(D112:H112) -> 0
B113: Начальник | C113: 0
B114: Начальник отдела | C114: 0
A115: 3 | B115: Педагог-психолог | C115: 0
A116: 4 | B116: Методист | C116: 2 | E116: 2
A117: 5 | B117: Старший методист | C117: 0
A118: 6 | B118: Специалист | C118: 0
A119: 7 | B119: Ведущий специалист | C119: 0
B120: N | C120: 0
C121: =SUM(C111:C120) -> 2
A122: ПО
A123: № | B123: Предмет | C123: Всего | D123: Высшая квалификационная категория | E123: I квалификационная категория | F123: II квалификационная категория | G123: Без категории | H123: N
A124: 1 | B124: Воспитатель (64 час.) | C124: =SUM(D124:H124) -> 0
A125: =A124+1 -> 2 | B125: Директор (108 час.) | C125: =SUM(D125:H125) -> 0
A126: =A125+1 -> 3 | B126: Заведующий (96 час.) | C126: 0
A127: 4 | B127: Заведующий методическим кабинетом | C127: 0
A128: 5 | B128: Заведующий отделением (64 час.) | C128: 0
A129: 6 | B129: Заведующий филиалом | C129: 0
A130: 7 | B130: Заместитель | C130: 2 | H130: 2
A131: 8 | B131: Заместитель директора | C131: 0
A132: 9 | B132: Музыкальный руководитель | C132: 0
A133: 10 | B133: Мастер производ.обучения | C133: 0
A134: 11 | B134: Методист | C134: 1 | E134: 1
A135: 12 | B135: Педагог доп.образования (64 час.) | C135: 0
A136: 13 | B136: Педагог-библиотекарь (64 час.) | C136: 1 | H136: 1
A137: 14 | B137: Педагог-организатор (64 час.) | C137: 0
A138: 15 | B138: Педагог-психолог (64 час.) | C138: 0
A139: 16 | B139: Преподаватель (96 час.) | C139: 5 | D139: 1 | E139: 1 | G139: 1 | H139: 2
A140: 17 | B140: Общепроф. дисциплины (96 час.) | C140: 0
A141: 18 | B141: Учитель | C141: 0
A142: 19 | B142: Социальный педагог (64 час.) | C142: 0
A143: 20 | B143: Старший мастер | C143: 0
A144: 21 | B144: Руководитель физического воспитания | C144: =SUM(D144:H144) -> 0
A145: 22 | B145: Начальник отдела | C145: 1 | E145: 1
A146: 23 | B146: N | C146: 0
C147: =SUM(C124:C146) -> 10
A148: Прочие (детские дома, центры психолого-медико-социального сопровождения, межшкольный учебный комбинат, вечерняя школа закрытого типа)
A149: № | B149: Предмет | C149: Всего | D149: Высшая квалификационная категория | E149: I квалификационная категория | F149: II квалификационная категория | G149: Без категории | H149: N
A150: 1 | B150: Воспитатель (64 час.) | C150: =SUM(D150:H150) -> 0
A151: 2 | B151: Директор (108 час.) | C151: =SUM(D151:H151) -> 0
A152: 3 | B152: Замиститель | C152: 0
A153: 4 | B153: Инструктор по туду | C153: 0
A154: 5 | B154: Инструктор по физической культуре | C154: 0
A155: 6 | B155: Музыкальный руководитель | C155: 0
A156: 7 | B156: Педагог доп.образования (64 час.) | C156: 0
A157: 8 | B157: Педагог-организатор | C157: 0
A158: 9 | B158: Педагог-библиотекарь (96 час.) | C158: 0
A159: 10 | B159: Педагог-психолог (64 час.) | C159: 0
A160: 11 | B160: Преподаватель | C160: 0
A161: 12 | B161: Социальный педагог (72 час.) | C161: 0
A162: 13 | B162: Специалист | C162: 0
A163: 14 | B163: Учитель | C163: 0
A164: 15 | B164: Учитель-дефектолог (196 час.) | C164: 0
A165: 16 | B165: Учитель-логопед (64 час.) | C165: 0
A166: 17 | B166: N | C166: 0
C167: =SUM(C150:C166) -> 0
C168: 144

Sheet 2.10 (1056)
A1: 2.10. Дистанционная программа ПК для отдельных категорий участников: старших воспитателей, воспитателей ДОО, учителей математики, русского языка, родного языка, обществознания, географии, педагогов по обучению детей с ограниченными возможностями здоровья, педагогов ДОД.
A2: № | B2: Предмет | C2: Всего | D2: Высшая квалификационная категория | E2: I квалификационная категория | F2: II квалификационная категория | G2: Без категории | H2: N
A3: 1 | B3: Директор (108 час.) | C3: =SUM(D3:H3) -> 0
A4: 2 | B4: Заместитель директора (108 час.) | C4: 6 | D4: 1 | E4: 2 | G4: 1 | H4: 2
A5: 3 | B5: Заместитель | C5: 3 | E5: 2 | H5: 1
A6: 4 | B6: Заведующий | C6: 0
A7: 5 | B7: Заведующий отделением | C7: 0
A8: 6 | B8: Заведующий филиалом | C8: 0
A9: 7 | B9: Педагог-библиотекарь (64 час.) | C9: 5 | H9: 5
A10: 8 | B10: Педагог-организатор (64 час.) | C10: 7 | E10: 5 | H10: 2
A11: 9 | B11: Педагог-психолог (64 час.) | C11: 1 | H11: 1
A12: 10 | B12: Педагог доп. образования | C12: 6 | D12: 2 | E12: 3 | G12: 1
A13: 11 | B13: Старший педагог дополнительного образования | C13: 0
A14: 12 | B14: Социальный педагог (64 час.) | C14: 0
A15: 13 | B15: Воспитатель | C15: 36 | E15: 17 | G15: 11 | H15: 8
A16: 14 | B16: Старший воспитатель | C16: 0
A17: 15 | B17: Специалист (64 час.) | C17: 0
A18: 16 | B18: Сотрудник | C18: 0
A19: 17 | B19: Мастер производственного обучения | C19: 0
A20: 18 | B20: Методист | C20: 1 | H20: 1
A21: 19 | B21: Преподаватель | C21: 0
A22: 20 | B22: Тьютор | C22: 0
A23: 21 | B23: Учитель-дефектолог (96 час.) | C23: 5 | E23: 5
A24: 22 | B24: Учитель-дефектолог (олигофренопедагог) | C24: 0
A25: 23 | B25: Учитель-дефектолог (сурдопедагог) | C25: 1 | D25: 1
A26: 24 | B26: Учитель-дефектолог (тифлопедагог) | C26: 2 | D26: 1 | E26: 1
A27: 25 | B27: Учитель-логопед (64 час.) | C27: 1 | G27: 1
A28: 26 | B28: Учитель (предмет не указан) | C28: 39 | D28: 6 | E28: 14 | F28: 1 | G28: 6 | H28: 12
A29: 27 | B29: Начальные классы (64 час.) | C29: 8 | D29: 1 | E29: 3 | G29: 1 | H29: 3
A30: 28 | B30: Рус.яз. и лит-ра (96 час.) | C30: 20 | D30: 3 | E30: 16 | G30: 1
A31: 29 | B31: Тат.яз и лит (96 час.) | C31: 37 | D31: 9 | E31: 27 | H31: 1
A32: =A31+1 -> 30 | B32: Родной язык и литература | C32: 6 | E32: 2 | G32: 3 | H32: 1
A33: =A32+1 -> 31 | B33: Марийский язык 196 час.) | C33: 0
A34: 32 | B34: Чувашский язык (96 час.) | C34: 0
A35: 33 | B35: Удм. язык (96 час.) | C35: 0
A36: 34 | B36: Иностранный язык | C36: 3 | E36: 2 | G36: 1
A37: 35 | B37: Анг.яз. (96 час.) | C37: 0
A38: 36 | B38: Франц.яз. (96 час.) | C38: 0
A39: 37 | B39: Немец.яз. (96 час.) | C39: 0
A40: 38 | B40: Математика (96 час.) | C40: 23 | D40: 5 | E40: 15 | F40: 1 | G40: 1 | H40: 1
A41: 39 | B41: Информатика и ИКТ (96 час.) | C41: 1 | E41: 1
A42: 40 | B42: История и обществознание (96 час.) | C42: 9 | D42: 1 | E42: 6 | F42: 1 | G42: 1
A43: 41 | B43: География (96 час.) | C43: 3 | D43: 1 | E43: 2
A44: 42 | B44: Физика (96 час.) | C44: 3 | E44: 3
A45: 43 | B45: Химия (96 час.) | C45: 0
A46: 44 | B46: Биология (96 час.) | C46: 1 | E46: 1
A47: 45 | B47: ИЗО (96 час.) | C47: 0
A48: 46 | B48: Музыка (96 час.) | C48: 0
A49: 47 | B49: Технология (96 час.) | C49: 1 | E49: 1
A50: 48 | B50: ОБЖ (96 час.) | C50: 0
A51: 49 | B51: Преподаватель-организатор основ безопасности жизнедеятельности | C51: 0
A52: 50 | B52: Физ-ра (96 час.) | C52: 5 | D52: 2 | E52: 3
A53: 51 | B53: Инструктор по физической культуре | C53: 0
A54: 52 | B54: Тренер-преподаватель | C54: 0
A55: 53 | B55: ОРКСЭ (96 час.) | C55: 0
A56: 54 | B56: Классный час | C56: 0
A57: 55 | B57: Музыкальный руководитель | C57: 1 | G57: 1
A58: 56 | B58: N | C58: 8 | D58: 2 | E58: 2 | F58: 1 | G58: 1 | H58: 2
C59: =SUM(C3:C58) -> 242
A60: ДОО
A61: № | B61: Предмет | C61: Всего | D61: Высшая квалификационная категория | E61: I квалификационная категория | F61: II квалификационная категория | G61: Без категории | H61: N
A62: 1 | B62: Заведующий (72 час.) | C62: =SUM(D62:H62) -> 20 | D62: 3 | E62: 10 | G62: 4 | H62: 3
A63: 2 | B63: Директор | C63: =SUM(D63:H63) -> 0
A64: 3 | B64: Заместитель | C64: 2 | D64: 1 | E64: 1
A65: 4 | B65: Заместитель директора | C65: 0
A66: 5 | B66: Заместитель заведующего | C66: 3 | E66: 2 | H66: 1
A67: 6 | B67: Воспитатель (64 час.) | C67: 582 | D67: 88 | E67: 341 | F67: 3 | G67: 85 | H67: 65
A68: 7 | B68: Дошкольник | C68: 0
A69: 8 | B69: Инструктор по физ.культуре (64 час.) | C69: 9 | D69: 1 | E69: 3 | G69: 5
A70: 9 | B70: Тренер-преподаватель | C70: 0
A71: 10 | B71: Заведующий методическим кабинетом | C71: 0
A72: 11 | B72: Методист (64 час.) | C72: 10 | E72: 8 | G72: 1 | H72: 1
A73: 12 | B73: Муз. руководитель (64 час.) | C73: 36 | D73: 7 | E73: 20 | G73: 4 | H73: 5
A74: 13 | B74: Педагог дополнительного образования | C74: 1 | H74: 1
A75: 14 | B75: Педагог-организатор | C75: 0
A76: 15 | B76: Педагог-психолог (64 час.) | C76: 9 | D76: 1 | E76: 5 | G76: 1 | H76: 2
A77: 16 | B77: Преподаватель | C77: 0
A78: 17 | B78: Специалист | C78: 0
A79: 18 | B79: Старший специалист | C79: 0
A80: 19 | B80: Старший воспитатель (64 час.) | C80: 61 | D80: 26 | E80: 28 | G80: 4 | H80: 3
A81: 20 | B81: Учитель | C81: 0
A82: 21 | B82: Учитель-дефектолог | C82: 1 | D82: 1
A83: 22 | B83: Учитель-дефектолог (олигофренопедагог) | C83: 0
A84: 23 | B84: Учитель-дефектолог (тифлопедагог) | C84: 1 | G84: 1
A85: 24 | B85: Учитель-логопед (64 час.) | C85: 20 | D85: 4 | E85: 14 | G85: 2
A86: 25 | B86: N | C86: 8 | D86: 1 | E86: 2 | F86: 1 | G86: 4
C87: =SUM(C62:C86) -> 763
A88: ДОД
A89: № | B89: Предмет | C89: Всего | D89: Высшая квалификационная категория | E89: I квалификационная категория | F89: II квалификационная категория | G89: Без категории | H89: N
A90: 1 | B90: Директор (108 час.) | C90: =SUM(D90:H90) -> 0
A91: 2 | B91: Заместитель (64 час.) | C91: =SUM(D91:H91) -> 0
A92: 3 | B92: Заместитель директора | C92: 0
A93: 4 | B93: Заведующий (64 час.) | C93: 2 | G93: 2
A94: 5 | B94: Заведующий отделением | C94: 0
A95: 6 | B95: Заведующий структурного подразделения | C95: 0
A96: 7 | B96: Заведующий методическим кабинетом | C96: 0
A97: 8 | B97: Концертмейстер (64 час.) | C97: 0
A98: 9 | B98: Методист (64 час.) | C98: 3 | E98: 1 | G98: 1 | H98: 1
A99: 10 | B99: Педагог доп.образования (64 час.) | C99: 23 | D99: 1 | E99: 8 | G99: 4 | H99: 10
A100: 11 | B100: Педагог-организатор (64 час.) | C100: 3 | E100: 1 | F100: 1 | H100: 1
A101: 12 | B101: Педагог-психолог (64 час.) | C101: 0
A102: 13 | B102: Преподаватель (64 час.) | C102: 1 | H102: 1
A103: 14 | B103: Преподаватель ДМШ (64 час.) | C103: 1 | E103: 1
A104: 15 | B104: Преподаватель ДХШ (64 час.) | C104: 0
A105: 16 | B105: Преподаватель ДШИ | C105: 0
A106: 17 | B106: Учитель | C106: 1 | H106: 1
A107: 18 | B107: Воспитатель | C107: 0
A108: 19 | B108: N | C108: 0
C109: =SUM(C90:C108) -> 34
A110: Районные учреждения образования | D110: ИМЦ, РОО
A111: № | B111: Предмет | C111: Всего | D111: Высшая квалификационная категория | E111: I квалификационная категория | F111: II квалификационная категория | G111: Без категории | H111: N
A112: 2 | B112: Заместитель | C112: =SUM(D112:H112) -> 0
B113: Заместитель начальника | C113: =SUM(D113:H113) -> 0
B114: Начальник | C114: 0
B115: Начальник отдела | C115: 0
A116: 3 | B116: Педагог-психолог | C116: 0
A117: 4 | B117: Методист | C117: 0
A118: 5 | B118: Старший методист | C118: 0
A119: 6 | B119: Специалист | C119: 0
A120: 7 | B120: Ведущий специалист | C120: 0
B121: N | C121: 0
C122: =SUM(C112:C121) -> 0
A123: ПО
A124: № | B124: Предмет | C124: Всего | D124: Высшая квалификационная категория | E124: I квалификационная категория | F124: II квалификационная категория | G124: Без категории | H124: N
A125: 1 | B125: Воспитатель (64 час.) | C125: =SUM(D125:H125) -> 0
A126: 3 | B126: Директор (108 час.) | C126: =SUM(D126:H126) -> 0
A127: 4 | B127: Заведующий (96 час.) | C127: 0
B128: Заведующий методическим кабинетом | C128: 1 | H128: 1
A129: 6 | B129: Заведующий отделением (64 час.) | C129: 0
A130: 8 | B130: Заведующий филиалом | C130: 0
A131: 9 | B131: Заместитель | C131: 0
A132: 10 | B132: Заместитель директора | C132: 0
A133: 11 | B133: Музыкальный руководитель | C133: 0
A134: 12 | B134: Мастер производ.обучения | C134: 0
A135: 13 | B135: Методист | C135: 0
A136: 16 | B136: Педагог доп.образования (64 час.) | C136: 1 | E136: 1
A137: 17 | B137: Педагог-библиотекарь (64 час.) | C137: 0
A138: 18 | B138: Педагог-организатор (64 час.) | C138: 0
A139: 19 | B139: Педагог-психолог (64 час.) | C139: 0
A140: 21 | B140: Преподаватель (96 час.) | C140: 6 | E140: 3 | F140: 1 | H140: 2
A141: 23 | B141: Общепроф. дисциплины (96 час.) | C141: 0
B142: Учитель | C142: 1 | H142: 1
A143: 24 | B143: Социальный педагог (64 час.) | C143: 0
A144: 25 | B144: Старший мастер | C144: 0
A145: 28 | B145: Преподаватель физического воспитания | C145: 0
A146: 30 | B146: N | C146: 0
C147: =SUM(C125:C146) -> 9
A148: Прочие (детские дома, центры психолого-медико-социального сопровождения, межшкольный учебный комбинат, вечерняя школа закрытого типа)
A149: № | B149: Предмет | C149: Всего | D149: Высшая квалификационная категория | E149: I квалификационная категория | F149: II квалификационная категория | G149: Без категории | H149: N
A150: 1 | B150: Воспитатель (64 час.) | C150: =SUM(D150:H150) -> 0
A151: 2 | B151: Директор (108 час.) | C151: =SUM(D151:H151) -> 0
A152: 3 | B152: Замиститель | C152: 1 | G152: 1
A153: 4 | B153: Инструктор по туду | C153: 0
A154: 5 | B154: Инструктор по физической культуре | C154: 0
A155: 6 | B155: Музыкальный руководитель | C155: 0
A156: 7 | B156: Педагог доп.образования (64 час.) | C156: 2 | E156: 1 | G156: 1
A157: 8 | B157: Педагог-организатор | C157: 1 | E157: 1
A158: 9 | B158: Педагог-библиотекарь (96 час.) | C158: 0
A159: 10 | B159: Педагог-психолог (64 час.) | C159: 1 | D159: 1
A160: 11 | B160: Преподаватель | C160: 0
A161: 12 | B161: Социальный педагог (72 час.) | C161: 0
A162: 13 | B162: Специалист | C162: 0
A163: 14 | B163: Учитель | C163: 0
A164: 15 | B164: Учитель-дефектолог (196 час.) | C164: 0
A165: 16 | B165: Учитель-логопед (64 час.) | C165: 2 | E165: 2
A166: 17 | B166: Методист | C166: 1 | E166: 1
A167: 18 | B167: N | C167: 0
C168: =SUM(C150:C167) -> 8
C169: 1056

Sheet 2.11 (766)
A1: 2.11. Иное
A2: № | B2: Предмет | C2: Всего | D2: Высшая квалификационная категория | E2: I квалификационная категория | F2: II квалификационная категория | G2: Без категории | H2: N
A3: 1 | B3: Директор (108 час.) | C3: =SUM(D3:H3) -> 21 | D3: 11 | E3: 5 | G3: 1 | H3: 4
A4: 2 | B4: Заместитель директора (108 час.) | C4: 26 | D4: 5 | E4: 9 | G4: 8 | H4: 4
A5: 3 | B5: Заместитель | C5: 14 | D5: 4 | E5: 6 | G5: 2 | H5: 2
A6: 4 | B6: Заведующий | C6: 0
A7: 5 | B7: Заведующий отделением | C7: 0
A8: 6 | B8: Заведующий филиалом | C8: 0
A9: =A8+1 -> 7 | B9: Начальник структурного подразделения | C9: 1 | G9: 1
A10: =A9+1 -> 8 | B10: Педагог-библиотекарь (64 час.) | C10: 51 | D10: 3 | E10: 7 | F10: 1 | G10: 11 | H10: 29
A11: 9 | B11: Педагог-организатор (64 час.) | C11: 10 | E11: 6 | G11: 1 | H11: 3
A12: 10 | B12: Педагог-психолог (64 час.) | C12: 5 | E12: 2 | G12: 2 | H12: 1
A13: 11 | B13: Педагог доп. образования | C13: 0
A14: 12 | B14: Старший педагог дополнительного образования | C14: 8 | D14: 4 | E14: 2 | G14: 2
A15: 13 | B15: Социальный педагог (64 час.) | C15: 6 | E15: 3 | G15: 1 | H15: 2
A16: 14 | B16: Воспитатель | C16: 26 | E16: 12 | F16: 1 | G16: 5 | H16: 8
A17: 15 | B17: Старший воспитатель | C17: 0
A18: 16 | B18: Специалист (64 час.) | C18: 0
A19: 17 | B19: Сотрудник | C19: 0
A20: 18 | B20: Мастер производственного обучения | C20: 0
A21: 19 | B21: Методист | C21: 0
A22: 20 | B22: Преподаватель | C22: 0
A23: 21 | B23: Тьютор | C23: 6 | G23: 4 | H23: 2
A24: 22 | B24: Учитель-дефектолог (96 час.) | C24: 3 | D24: 1 | E24: 1 | H24: 1
A25: 23 | B25: Учитель-дефектолог (олигофренопедагог) | C25: 0
A26: 24 | B26: Учитель-дефектолог (сурдопедагог) | C26: 0
A27: 25 | B27: Учитель-дефектолог (тифлопедагог) | C27: 0
A28: 26 | B28: Учитель-логопед (64 час.) | C28: 0
A29: 27 | B29: Учитель (предмет не указан) | C29: 24 | D29: 3 | E29: 9 | F29: 1 | G29: 3 | H29: 8
A30: 28 | B30: Начальные классы (64 час.) | C30: 6 | D30: 3 | E30: 2 | H30: 1
A31: 29 | B31: Рус.яз. и лит-ра (96 час.) | C31: 1 | D31: 1
A32: 30 | B32: Тат.яз и лит (96 час.) | C32: 8 | D32: 1 | E32: 6 | F32: 1
A33: 31 | B33: Родной язык и литература | C33: 1 | E33: 1
A34: 32 | B34: Марийский язык 196 час.) | C34: 0
A35: 33 | B35: Чувашский язык (96 час.) | C35: 0
A36: 34 | B36: Удм. язык (96 час.) | C36: 0
A37: 35 | B37: Иностранный язык | C37: 5 | E37: 5
A38: 36 | B38: Анг.яз. (96 час.) | C38: 0
A39: 37 | B39: Франц.яз. (96 час.) | C39: 0
A40: 38 | B40: Немец.яз. (96 час.) | C40: 0
A41: 39 | B41: Математика (96 час.) | C41: 1 | E41: 1
A42: 40 | B42: Информатика и ИКТ (96 час.) | C42: 1 | E42: 1
A43: 41 | B43: История и обществознание (96 час.) | C43: 3 | E43: 1 | H43: 2
A44: 42 | B44: География (96 час.) | C44: 0
A45: 43 | B45: Физика (96 час.) | C45: 3 | D45: 1 | E45: 2
A46: 44 | B46: Химия (96 час.) | C46: 1 | D46: 1
A47: 45 | B47: Биология (96 час.) | C47: 1 | G47: 1
A48: 46 | B48: Искусство | C48: 4 | D48: 3 | E48: 1
A49: 47 | B49: ИЗО (96 час.) | C49: 0
A50: 48 | B50: Музыка (96 час.) | C50: 0
A51: 49 | B51: Технология (96 час.) | C51: 3 | E51: 3
A52: 50 | B52: ОБЖ (96 час.) | C52: 0
A53: 51 | B53: Преподаватель-организатор основ безопасности жизнедеятельности | C53: 2 | E53: 1 | H53: 1
A54: 52 | B54: Физ-ра (96 час.) | C54: 3 | D54: 1 | E54: 2
A55: 53 | B55: Инструктор по физической культуре | C55: 0
A56: 54 | B56: Тренер-преподаватель | C56: 0
A57: 55 | B57: ОРКСЭ (96 час.) | C57: 0
A58: 56 | B58: Классный час | C58: 0
A59: 57 | B59: Музыкальный руководитель | C59: 2 | D59: 2
A60: 58 | B60: N | C60: 23 | D60: 7 | E60: 11 | G60: 1 | H60: 4
C61: =SUM(C3:C60) -> 269
A62: ДОО
A63: № | B63: Предмет | C63: Всего | D63: Высшая квалификационная категория | E63: I квалификационная категория | F63: II квалификационная категория | G63: Без категории | H63: N
A64: 1 | B64: Заведующий (72 час.) | C64: =SUM(D64:H64) -> 67 | D64: 5 | E64: 21 | F64: 1 | G64: 11 | H64: 29
A65: 2 | B65: Директор | C65: =SUM(D65:H65) -> 1 | E65: 1
A66: 3 | B66: Заместитель | C66: 1 | H66: 1
A67: 4 | B67: Заместитель директора | C67: 0
A68: 5 | B68: Заместитель заведующего | C68: 2 | D68: 1 | H68: 1
A69: 6 | B69: Воспитатель (64 час.) | C69: 165 | D69: 11 | E69: 110 | F69: 1 | G69: 25 | H69: 18
A70: 7 | B70: Дошкольник | C70: 0
A71: 8 | B71: Инструктор по физ.культуре (64 час.) | C71: 25 | D71: 4 | E71: 12 | G71: 5 | H71: 4
A72: 9 | B72: Тренер-преподаватель | C72: 0
A73: 10 | B73: Заведующий методическим кабинетом | C73: 0
A74: 11 | B74: Методист (64 час.) | C74: 0
A75: 12 | B75: Муз. руководитель (64 час.) | C75: 44 | D75: 6 | E75: 29 | F75: 1 | G75: 6 | H75: 2
A76: 13 | B76: Педагог дополнительного образования | C76: 0
A77: 14 | B77: Педагог-организатор | C77: 0
A78: 15 | B78: Педагог-психолог (64 час.) | C78: 2 | E78: 2
A79: 16 | B79: Преподаватель | C79: 0
A80: 17 | B80: Специалист | C80: 0
A81: 18 | B81: Старший специалист | C81: 0
A82: 19 | B82: Старший воспитатель (64 час.) | C82: 5 | D82: 1 | E82: 2 | H82: 2
A83: 20 | B83: Учитель | C83: 1 | G83: 1
A84: 21 | B84: Учитель-дефектолог | C84: 0
A85: 22 | B85: Учитель-дефектолог (олигофренопедагог) | C85: 0
A86: 23 | B86: Учитель-дефектолог (тифлопедагог) | C86: 0
A87: 24 | B87: Учитель-логопед (64 час.) | C87: 18 | D87: 4 | E87: 13 | G87: 1
A88: 25 | B88: N | C88: 2 | D88: 1 | G88: 1
C89: =SUM(C64:C88) -> 333
A90: ДОД
A91: № | B91: Предмет | C91: Всего | D91: Высшая квалификационная категория | E91: I квалификационная категория | F91: II квалификационная категория | G91: Без категории | H91: N
A92: 1 | B92: Директор (108 час.) | C92: =SUM(D92:H92) -> 6 | D92: 2 | E92: 1 | G92: 1 | H92: 2
A93: 2 | B93: Заместитель (64 час.) | C93: =SUM(D93:H93) -> 4 | E93: 2 | H93: 2
A94: 3 | B94: Заместитель директора | C94: 5 | E94: 2 | G94: 1 | H94: 2
A95: 4 | B95: Заведующий (64 час.) | C95: 2 | D95: 1 | E95: 1
A96: 5 | B96: Заведующий отделением | C96: 2 | E96: 2
A97: 6 | B97: Заведующий структурного подразделения | C97: 2 | E97: 1 | H97: 1
A98: 7 | B98: Заведующий методическим кабинетом | C98: 2 | D98: 1 | G98: 1
A99: 8 | B99: Концертмейстер (64 час.) | C99: 5 | D99: 1 | E99: 4
A100: 9 | B100: Методист (64 час.) | C100: 5 | E100: 2 | G100: 1 | H100: 2
A101: 10 | B101: Педагог доп.образования (64 час.) | C101: 35 | D101: 8 | E101: 15 | G101: 2 | H101: 10
A102: 11 | B102: Педагог-организатор (64 час.) | C102: 2 | E102: 1 | H102: 1
A103: 12 | B103: Педагог-психолог (64 час.) | C103: 0
A104: 13 | B104: Преподаватель (64 час.) | C104: 4 | D104: 2 | E104: 1 | G104: 1
A105: 14 | B105: Преподаватель ДМШ (64 час.) | C105: 3 | D105: 3
A106: 15 | B106: Преподаватель ДХШ (64 час.) | C106: 0
A107: 16 | B107: Преподаватель ДШИ | C107: 5 | D107: 1 | E107: 4
A108: 17 | B108: Учитель | C108: 0
A109: 18 | B109: Тренер-преподаватель | C109: 0
A110: 19 | B110: N | C110: 0
C111: =SUM(C92:C110) -> 82
A112: Районные учреждения образования | D112: ИМЦ, РОО
A113: № | B113: Предмет | C113: Всего | D113: Высшая квалификационная категория | E113: I квалификационная категория | F113: II квалификационная категория | G113: Без категории | H113: N
A114: 1 | B114: Директор | C114: =SUM(D114:H114) -> 1 | D114: 1
A115: =A114+1 -> 2 | B115: Заместитель | C115: =SUM(D115:H115) -> 1 | H115: 1
A116: =A115+1 -> 3 | B116: Заместитель начальника | C116: =SUM(D116:H116) -> 2 | H116: 2
A117: 4 | B117: Начальник | C117: 1 | H117: 1
A118: 5 | B118: Начальник управления | C118: 1 | H118: 1
A119: 6 | B119: Начальник отдела | C119: 0
A120: 7 | B120: Педагог-психолог | C120: 1 | H120: 1
A121: 8 | B121: Методист | C121: 19 | D121: 7 | E121: 8 | G121: 2 | H121: 2
A122: 9 | B122: Старший методист | C122: 3 | D122: 2 | E122: 1
A123: 10 | B123: Специалист | C123: 1 | E123: 1
A124: 11 | B124: Ведущий специалист | C124: 0
A125: 12 | B125: N | C125: 1 | D125: 1
C126: =SUM(C114:C125) -> 31
A127: ПО
A128: № | B128: Предмет | C128: Всего | D128: Высшая квалификационная категория | E128: I квалификационная категория | F128: II квалификационная категория | G128: Без категории | H128: N
A129: 1 | B129: Воспитатель (64 час.) | C129: =SUM(D129:H129) -> 0
A130: =A129+1 -> 2 | B130: Директор (108 час.) | C130: =SUM(D130:H130) -> 7 | D130: 1 | E130: 2 | H130: 4
A131: =A130+1 -> 3 | B131: Заведующий (96 час.) | C131: 0
A132: 4 | B132: Заведующий методическим кабинетом | C132: 0
A133: 5 | B133: Заведующий отделением (64 час.) | C133: 1 | E133: 1
A134: 6 | B134: Заведующий филиалом | C134: 0
A135: 7 | B135: Заместитель | C135: 1 | H135: 1
A136: 8 | B136: Заместитель директора | C136: 2 | G136: 1 | H136: 1
A137: 9 | B137: Музыкальный руководитель | C137: 0
A138: 10 | B138: Мастер производ.обучения | C138: 6 | D138: 1 | E138: 1 | F138: 1 | G138: 1 | H138: 2
A139: 11 | B139: Методист | C139: 1 | H139: 1
A140: 12 | B140: Педагог доп.образования (64 час.) | C140: 0
A141: 13 | B141: Педагог-библиотекарь (64 час.) | C141: 0
A142: 14 | B142: Педагог-организатор (64 час.) | C142: 1 | H142: 1
A143: 15 | B143: Педагог-психолог (64 час.) | C143: 2 | D143: 1 | H143: 1
A144: 16 | B144: Преподаватель (96 час.) | C144: 10 | D144: 3 | E144: 1 | F144: 1 | G144: 3 | H144: 2
A145: 17 | B145: Общепроф. дисциплины (96 час.) | C145: 0
A146: 18 | B146: Учитель | C146: 0
A147: 19 | B147: Социальный педагог (64 час.) | C147: 1 | H147: 1
A148: 20 | B148: Старший мастер | C148: 0
A149: 21 | B149: N | C149: 1 | G149: 1
C150: =SUM(C129:C149) -> 33
A151: Прочие (детские дома, центры психолого-медико-социального сопровождения, межшкольный учебный комбинат, вечерняя школа закрытого типа)
A152: № | B152: Предмет | C152: Всего | D152: Высшая квалификационная категория | E152: I квалификационная категория | F152: II квалификационная категория | G152: Без категории | H152: N
A153: 1 | B153: Воспитатель (64 час.) | C153: =SUM(D153:H153) -> 2 | H153: 2
A154: 2 | B154: Директор (108 час.) | C154: =SUM(D154:H154) -> 1 | E154: 1
A155: 3 | B155: Замиститель | C155: 1 | H155: 1
A156: 4 | B156: Инструктор по туду | C156: 0
A157: 5 | B157: Инструктор по физической культуре | C157: 0
A158: 6 | B158: Музыкальный руководитель | C158: 0
A159: 7 | B159: Педагог доп.образования (64 час.) | C159: 2 | E159: 2
A160: 8 | B160: Педагог-организатор | C160: 1 | G160: 1
A161: 9 | B161: Педагог-библиотекарь (96 час.) | C161: 0
A162: 10 | B162: Педагог-психолог (64 час.) | C162: 6 | E162: 2 | G162: 2 | H162: 2
A163: 11 | B163: Преподаватель | C163: 0
A164: 12 | B164: Социальный педагог (72 час.) | C164: 4 | E164: 2 | G164: 1 | H164: 1
A165: 13 | B165: Специалист | C165: 0
A166: 14 | B166: Учитель | C166: 0
A167: 15 | B167: Учитель-дефектолог (196 час.) | C167: 0
A168: 16 | B168: Учитель-логопед (64 час.) | C168: 0
A169: 17 | B169: Методист | C169: 1 | G169: 1
A170: 18 | B170: N | C170: 0
C171: =SUM(C153:C170) -> 18
C172: 766

Sheet Иное
A1: Значение поля "иное" | B1: кол-во
A2: "Инновационные методы преподавания эстрадного вокала" | B2: 1
A3: "Инновационные подходы к формированию эстетической культуры старших дошкольников в процессе художественной деятельности (ФГОС ДО)" | B3: 1
A4: "Ключевые направления профессионального развития руководителя структурного подразделения учреждения дополнительного образования: предметное, методическое, психолого-педагогическое, коммуникативное" | B4: 3
A5: "Программа ПК, которая формирует у воспитателя навыки организации волонтёрского(добровольческого) движения детей дошкольного возраста" | B5: 1
A6: "Психолого-педагогические особенности и направления интегративной образовательной деятельности детей дошкольного возраста в рамках реализации ФГОС ДО" | B6: 4
A7: "Совершенствование методической компетентности заместителя директора по учебно-воспитательной работе учреждения дополнительного образования" | B7: 1
A8: "Современные приемы и методы работы музыкального руководителя" | B8: 1
A9: "управление в дошкольной образовательной организации в условиях реализации ФГОС ДО и внедрение профессиональных стандартов" | B9: 1
A10: "Формирование у детей младшего дошкольного возраста основ речевой моторики посредством использования пальчиковых игр" | B10: 1
A11: "Эффективный руководитель в условиях гендерного обучения ". | B11: 1
A12: «Актуальные проблемы психологической поддержки детей и подростков с учетом концепции развития психологической службы в системе образования в Российской Федерации на период до 2025 года» | B12: 1
A13: «Методы и технологии в преподавании учебных дисциплин «Родной язык» и «Родная литература» в соответствии с ФГОС» | B13: 1
A14: «Организация игровой деятельности детей в соответствии с ФГОС ДО» | B14: 1
A15: «Профессиональный стандарт педагога» | B15: 1
A16: «Психолого-педагогические основы профессионального обучения в условиях реализации новых ФГОС и профессиональных стандартов» | B16: 1
A17: «Совершенствование педагогической компетенции музыкального руководителя в ДОУ» | B17: 1
A18: «Современные направления деятельности методиста, старшего воспитателя в ДОУ» | B18: 1
A19: «Технология» - компьютерная графика и черчение, 3D-моделирование, прототипирование, моделирование, робототехника, технологии цифрового производства . | B19: 1
A20: «Физическая культура: теория и методика преподавания в дошкольном образовании» | B20: 1
A21: «Формирование речевой деятельности дошкольника на татарском языке" | B21: 1
A22: Актуальные направления профессионального развития и саморазвития современного учителя родного (татарского) языка и литературы | B22: 1
A23: Безопасность дорожного движения | B23: 2
A24: библиотечное дело | B24: 14
A25: Библиотечное дело в средней школе | B25: 1
A26: Библиотечное дело и библиография | B26: 1
A27: Библиотечное дело.Любая тема | B27: 1
A28: билингвальное воспитание | B28: 1
A29: билингвальное или полингвальное образование для ДОУ | B29: 1
A30: билингвальное образование в ДОО | B30: 1
A31: Билингвальное образование в рамках ФГОС дошкольного образования | B31: 1
A32: Билингвальное образование детей дошкольного возраста | B32: 1
A33: Билингвальное образование дошкольников | B33: 1
A34: Билингвальное развитие дошкольников | B34: 1
A35: В перечне вариантов нет курсов для руководителей школ-интернатов | B35: 1
A36: Внедрение стандарта педагога (для руководителя ДОО) | B36: 1
A37: Вопросы связанные с реализацией предпрофессиональных программ в области музыкального искусства "Фортепиано" ФГТ | B37: 1
A38: воспитание | B38: 2
A39: воспитание обучающихся в группе продленного дня | B39: 1
A40: воспитателей групп раннего возраста | B40: 1
A41: воспитатель ДОУ | B41: 1
A42: Воспитатель кадетской школы | B42: 1
A43: Воспитатель татарской разновозрастной группе | B43: 1
A44: Воспитательная деятельность | B44: 1
A45: воспитательная работа | B45: 1
A46: Воспитательная работа в СПО | B46: 1
A47: Воспитательная работа в УДО | B47: 1
A48: воспитательная работа в школах - интернатах для детей с ОВЗ | B48: 2
A49: Воспитательная функция школы в современных условиях образования | B49: 1
A50: воспитателю по обучению татарского языка в доу | B50: 1
A51: Геодезия | B51: 2
A52: Государственно -общественное управление образованием в условиях ФГОС дошкольного образования | B52: 1
A53: Государственно-общественное управление школой как ресурс ее успешного развития | B53: 1
A54: ГТО | B54: 1
A55: декоративно-прикладное творчество | B55: 1
A56: Делопроизводство на основе современных требований и в соответствии с законодательством | B56: 1
A57: дети с тяжелыми нарушениями речи | B57: 1
A58: дети с ФФН | B58: 1
A59: Детское движение | B59: 2
A60: Деятельность заведующего отделом организационно-массовой работы в системе дополнительного образования | B60: 1
A61: Деятельность и функции социального педагога в школе | B61: 1
A62: Деятельность концертмейстера в классе хореографии | B62: 1
A63: Деятельность педагога - библиотекаря в условиях реализации ФГОС | B63: 1
A64: Деятельность педагога-библиотекаря в рамках ФГОС | B64: 1
A65: Деятельность педагога-библиотекаря в условиях реализации ФГОС | B65: 2
A66: Дистанционная программа для специалистов служб сопровождения замещающих семей, специалистов постинтернатного сопровождения, а также для специалистов школ приемных родителей. | B66: 7
A67: Дистанционная программа для специалистов служб сопровождения,служб постинтернатного сопровождения, специалистов школ приёмных родителей. | B67: 1
A68: Дистанционная программа ПК для руководителей учреждений дополнительного образования | B68: 1
A69: Дистанционная программа ПК, педагогов по обучению ИЗО и декоративно-прикладное искусство | B69: 1
A70: Для библиотекарей | B70: 1
A71: для воспитателей | B71: 1
A72: для заведующих детских садов | B72: 1
A73: Для заведующих ДОУ, Система менеджмента качества образовательно-воспитательного процесса дошкольных образовательных учреждений в современных условиях | B73: 1
A74: для зам. директора по инновационной деятельности, с большим стажем работы | B74: 1
A75: Для заместителей директора | B75: 2
A76: Для педагогов допобразования | B76: 1
A77: Для руководителей ДОУ | B77: 1
A78: Для учителей физической культуры | B78: 1
A79: Для школьных библиотекарей | B79: 1
A80: ДОД, ШУС в образовательной организации | B80: 1
A81: документация музыкального руководителя ДОО | B81: 1
A82: ДОО региональный компонент | B82: 1
A83: Дополнительная профессиональная программа повышения квалификации лиц предпенсионного возраста "Цифровизация в дошкольном образовании" | B83: 2
A84: дополнительное образование | B84: 1
A85: Дополнительное образование детей в ДМШ | B85: 1
A86: дополнительное образование хореография | B86: 1
A87: Дошкольное воспитание | B87: 2
A88: Дошкольное образование | B88: 12
A89: Дошкольное образование в условиях реализации ФГОС | B89: 2
A90: Здоровьесберегающие технологии в музыкальном развитии детей ОО «Художественно-эстетическое развитие» раздел «Музыка» в рамках ФГОС ДО» | B90: 1
A91: ИБЦ как ведущщее звено а работе школы 21 века | B91: 1
A92: Из раздела работы с детьми ОВЗ ( нарушение слуха), работа сурдопедагога в школе-интернате по программам ФГОС ООО | B92: 1
A93: Изобразительное искусство | B93: 1
A94: Изобразительное искусство в дополнительном образовании | B94: 1
A95: Изучение ПДД в ДОУ | B95: 1
A96: Инновационная деятельность библиотекаря в условиях в условиях реализации ФГОС | B96: 1
A97: инновационная деятельность в предметных областях "Искусство" и "Технология" | B97: 1
A98: Инновационная деятельность инструктора по физической культуре в ДОО | B98: 1
A99: Инновационная деятельность музыкального руководителя в ДОО | B99: 1
A100: Инновационная деятельность педагога-библиотекаря в условиях развития информационных технологии и реализации ФГОС | B100: 1
A101: Инновационная деятельность учителя-логопеда ДОО в контексте ФГОС ДО | B101: 1
A102: Инновационная деятельность школьного библиотекаря | B102: 1
A103: Инновационные методы преподавания в организациях дополнительного образования детей | B103: 1
A104: инновационные методы работ с детьми-сиротами и детьми, оставшимися без попечения родителей в условиях детского дома | B104: 1
A105: Инновационные подходы в работе заместителя директора по воспитательной работе | B105: 1
A106: Инновационные подходы к организации воспитательно-образовательного процесса в условиях реализации ФГОС ДО | B106: 3
A107: Инновационные подходы к организации социально-личностного развития детей дошкольного возраста в соответствии с ФГОС. | B107: 4
A108: Инновационные подходы к организации учебного процесса в учреждениях дополнительного образования | B108: 1
A109: Инновационные практики в ДО | B109: 1
A110: Инновационные технологии в воспитательной сфере ОУ (для заместителей директоров по воспитательной работе) | B110: 1
A111: Инновационные технологии в воспитательной сфере ОУ (для заместителей директоров по ВР) | B111: 1
A112: Инновационные технологии в музыкальном образовании | B112: 1
A113: Инновационные технологии по художественно-эстетическому воспитанию детей дошкольного возраста | B113: 2
A114: Инновационные технологии преподавания родного языка в СПО | B114: 1
A115: Инновационные формы и методы в работе школьной библиотеки в условиях ФГОС | B115: 1
A116: Инновационные формы и методы воспитания, обучения детей сирот и детей, оставшихся без попечения родителей в условия детского дома | B116: 5
A117: инновационные формы и методы работы | B117: 1
A118: иное | B118: 1
A119: иностранный язык | B119: 1
A120: Интеграция двигательной,игровой и познавательно-исследовательской деятельности на физ.занятиях в ДОУ | B120: 1
A121: Интерактивные технологии обучения для детей дошкольного возраста | B121: 1
A122: Информационно-библиотечная культура | B122: 1
A123: Информационно-библиотечная среда для зав.библиотекой или педагог-библиотекарь | B123: 1
A124: Информационное и библиотечное обслуживание учащихся в школьной библиотеке | B124: 1
A125: Информационные технологии в профессиональной деятельности | B125: 1
A126: Использование инновационных технологий в дошкольном образовании | B126: 1
A127: Использование медиатехнологий, видео и фоторедакторов для создания обучающих материалов | B127: 1
A128: как руководитель организации | B128: 1
A129: Компетентность социального педагога | B129: 1
A130: Комплексно-научно методический подход к повышению профессиональной компетентности педагогов в области физическое воспитание. | B130: 1
A131: Комплексный подход к организации деятельности в дошкольном образовательном учреждении в современных условиях | B131: 1
A132: Комптентность воспитателя в реализации ФГОС ДОО | B132: 3
A133: концертмейстерское мастерство | B133: 1
A134: Коррекция звукопроизношения при сложной дислалии и дизартрии в соответствии с требованиями ФГОС. | B134: 1
A135: КПК для учителей-логопедов | B135: 1
A136: КПК для учителя-логопеда | B136: 1
A137: КПК Правил безопасного дорожного движения | B137: 1
A138: Краеведение, музейная деятельность | B138: 1
A139: Курс для заведующих ДОУ, Современные подходы в управлении качеством дошкольного образования в условиях реализации ФГОС | B139: 1
A140: Курс повышение квалификации "Особенности деятельности музыкального руководителя ДОУ в соответствии с ФГОС дошкольного образования" | B140: 1
A141: Курсы для библиотекарей | B141: 1
A142: Курсы для воспитателей ДОУ,для совершенствования компетентности воспитателей | B142: 1
A143: курсы для воспитателей школ-интернатов для одаренных детей (психолого-педагогическое сопровождение одаренных детей) | B143: 3
A144: курсы для заведующих детским садом | B144: 1
A145: курсы для заведующих ДОО | B145: 1
A146: курсы для заведующих ДОУ | B146: 1
A147: курсы для заместителя директора по учебной работе | B147: 1
A148: Курсы для методистов курирующий информатика и ИКТ | B148: 1
A149: курсы для методистов, курирующих вопрос качество образования | B149: 1
A150: Курсы для методистов, курирующих преподавание татарского языка и литературы | B150: 1
A151: курсы для музыкальных руководителей | B151: 1
A152: курсы для педагогов дополнительного образования | B152: 1
A153: курсы для руководителей ДОУ | B153: 1
A154: Курсы для руководителей организаций дополнительного образования | B154: 2
A155: Курсы для руководителей профессиональных образовательных учреждений | B155: 1
A156: курсы для школьных библиотекарей | B156: 1
A157: курсы ПК для заместителей директора | B157: 1
A158: курсы ПК для заместителей директора по воспитательной работе | B158: 1
A159: Курсы ПК для инструкторов по физической культуре | B159: 1
A160: курсы по астрономии | B160: 1
A161: курсы повышения для методистов СПО | B161: 1
A162: курсы повышения для педагогов ДМШ или ДШИ | B162: 1
A163: Курсы повышения для руководителей образовательных организации СПО | B163: 1
A164: Курсы повышения квалификации воспитателей ДОУ "Социально-нравственное воспитание дошкольников средствами художественной литературы" | B164: 2
A165: Курсы повышения квалификации для заведующих ДОУ | B165: 1
A166: Курсы повышения квалификации для зам. директора по учебной работе | B166: 1
A167: Курсы повышения квалификации для заместителей директоров по административно-хозяйственной работе | B167: 1
A168: Курсы повышения квалификации для инструкторов по физической культуре ДОО | B168: 2
A169: Курсы повышения квалификации для методистов районной методической службы по воспитательной работе | B169: 1
A170: курсы Повышения Квалификации для руководителей дошкольных образовательных учреждений. Стратегия развития МБДОУ в условиях полилингвального образования | B170: 1
A171: Курсы повышения квалификации для учителей музыки и музыкальных руководителей детских садов | B171: 1
A172: Курсы повышения квалификации как заместитель директора по воспитательной работе | B172: 1
A173: Курсы повышения квалификации музыкальных работников ДОУ по направлению "Музыкальное восприятие детей на занятиях музыки" по ФГОС | B173: 1
A174: курсы повышения квалификации работников дополнительного образования изо -деятельность | B174: 1
A175: Курсы повышения квалификации учителя-логопеда ДОО | B175: 1
A176: Курсы руководителей учреждений дополнительного образования | B176: 1
A177: математика | B177: 1
A178: менеджмент в образовательной организации | B178: 1
A179: Менеджмент и управление | B179: 1
A180: Методика обучения и воспитания в области дошкольного образования в условиях реализации ФГОС | B180: 1
A181: Методика преподавания английского языка в соответствии с ФГОС и немецкого языка как второго иностранного | B181: 1
A182: методист дополнительного образования в СПО | B182: 1
A183: методическая поддержка учителей по повышению качества образования | B183: 1
A184: Методическое обеспечение деятельности педагога-организатора | B184: 1
A185: Методическое сопровождение дошкольного образования в рамках ФГОС ДОО | B185: 1
A186: Методическое сопровождение профессионального роста педагога. Профессиональный стандарт педагога. | B186: 1
A187: методическое сопровождение ФГОС среднего общего образования | B187: 1
A188: Методы и технологии в преподавании учебных дисциплин "Родной язык" и "Родная литература" в соответствии в ФГОС | B188: 1
A189: Методы и технологии в преподавании учебных дисциплин "Родной язык" и "Родная литература" в соответствии с ФГОС | B189: 2
A190: Методы и технологии обучения иностранным языкам и системно-деятельностный подход в педагогике в условиях реализации ФГОС Артикул: 1151 | B190: 1
A191: Мне нужно направление курсов для заместителя директора по информационным технологиям | B191: 1
A192: Мне нужны курсы повышения квалификации как заведующей школьной библиотекой | B192: 1
A193: Модель управления процессом внедрения профессионального стандарта педагога как условие совершенствования качества образования в дошкольных образовательных организациях | B193: 1
A194: музыка | B194: 1
A195: Музыкальное воспитание | B195: 1
A196: Музыкальное воспитание в ДОО | B196: 2
A197: музыкальное воспитание в ДОУ | B197: 1
A198: Музыкальное воспитание в ДОУ. | B198: 1
A199: музыкальное воспитание детей дошкольного возраста | B199: 1
A200: Музыкальное образование детей дошкольного возраста | B200: 1
... 379 more rows
